Workbook

Sheet ABRIL 2020
A1: LISTADO DE CONTRATACION MES DE ABRIL 2020
A3: CEDULA | B3: NOMBRES APELLIDOS CONTRATISTA | C3: # OPS | D3: #OPS CON AÑO | E3: OBJETO DEL CONTRATO | F3: FECHA INICIO | G3: FECHA TERMINACION | H3: VALOR MENSUAL | I3: VALOR TOTAL | J3: SUPERVISOR | K3: CARGO | L3: CDP | M3: RP | N3: FECHA DE LINK | O3: LINKSECOOP
A4: 1140874429 | B4: ALBERTO DE LA OSSA DE AVILA | C4: 1324 | D4: 1324-2020 | E4: PROFESIONAL DE PRESUPUESTO | F4: 01 de Abril de 2020 | G4: 30 de Abril de 2020 | H4: 3000000 | I4: =+H4*1 -> 3000000 | J4: ALFONSO NICOLAS OQUENDO | K4: DIRECTOR FINANCIERO | L4: 1600 | M4: 2521 | N4: =VLOOKUP(A4:A444,'[2]ABRIL 2020'!$B$3:$M$584,12,0) -> 2020-04-20 | O4: https://www.contratos.gov.co/consultas/detalleProceso.do?numConstancia=20-4-10688521
A5: 1048204901 | B5: ALEXANDER RAFAEL OTERO PADILLA | C5: =+C4+1 -> 1325 | D5: 1325-2020 | E5: AUXILIAR DE PRSUPUESTO | F5: 01 de Abril de 2020 | G5: 30 de Abril de 2020 | H5: 4000000 | I5: 4000000 | J5: ALFONSO NICOLAS OQUENDO | K5: DIRECTOR FINANCIERO | L5: 1601 | M5: 2522 | N5: =VLOOKUP(A5:A443,'[2]ABRIL 2020'!$B$3:$M$584,12,0) -> 2020-04-20 | O5: https://www.contratos.gov.co/consultas/detalleProceso.do?numConstancia=20-4-10688532
A6: 1140881787 | B6: ALEXANDRA GUZMAN QUINTERO | C6: 1326 | D6: 1326-2020 | E6: ASISTENTE OFICINA JURIDICA | F6: 01 de Abril de 2020 | G6: 30 de Abril de 2020 | H6: 3000000 | I6: 3000000 | J6: ORNELLA FIORENTINO | K6: JEFE DE JURIDICA | L6: 1602 | M6: 2523 | N6: =VLOOKUP(A6:A444,'[2]ABRIL 2020'!$B$3:$M$584,12,0) -> 2020-04-20 | O6: https://www.contratos.gov.co/consultas/detalleProceso.do?numConstancia=20-4-10688559
A7: 22739459 | B7: ANA MILENA L´HOESTE ROA | C7: 1327 | D7: 1327-2020 | E7: COORDINADORA CONSULTA EXTERNA | F7: 01 de Abril de 2020 | G7: 30 de Abril de 2020 | H7: 3700000 | I7: 3700000 | J7: BETTY PERTUZ | K7: SUBGERENCIA CIENTIFICA | L7: 1603 | M7: 2524 | N7: =VLOOKUP(A7:A445,'[2]ABRIL 2020'!$B$3:$M$584,12,0) -> 2020-04-20 | O7: https://www.contratos.gov.co/consultas/detalleProceso.do?numConstancia=20-4-10688568
A8: 22736159 | B8: ARACELLY HERNANDEZ GARCIA | C8: 1328 | D8: 1328-2020 | E8: DIGITADOR PAI WEB | F8: 01 de Abril de 2020 | G8: 30 de Abril de 2020 | H8: 2500000 | I8: 2500000 | J8: NILSA ARIZA MARQUEZ | K8: COORDINADOR PYP | L8: 1604 | M8: 2525 | N8: =VLOOKUP(A8:A446,'[2]ABRIL 2020'!$B$3:$M$584,12,0) -> 2020-04-20 | O8: https://www.contratos.gov.co/consultas/detalleProceso.do?numConstancia=20-4-10688585
A9: 1140850083 | B9: ARLINY YANNINY RAMIREZ FIGUEROA | C9: 1329 | D9: 1329-2020 | E9: ASESOR DE PRESUPUESTO | F9: 01 de Abril de 2020 | G9: 30 de Abril de 2020 | H9: 4000000 | I9: 4000000 | J9: ALFONSO NICOLAS OQUENDO | K9: DIRECTOR FINANCIERO | L9: 1605 | M9: 2526 | N9: =VLOOKUP(A9:A446,'[2]ABRIL 2020'!$B$3:$M$584,12,0) -> 2020-04-20 | O9: https://www.contratos.gov.co/consultas/detalleProceso.do?numConstancia=20-4-10688600
A10: 1042444527 | B10: ARNOLD RINCON MARTINEZ | C10: 1330 | D10: 1330-2020 | E10: PROFESIONAL PLANEACION ESTRATEGICA | F10: 01 de Abril de 2020 | G10: 30 de Abril de 2020 | H10: 4000000 | I10: 4000000 | J10: SANDRA SANMARTIN | K10: SUBGENTE ADMINISTRATIVO | L10: 1606 | M10: 2527 | N10: =VLOOKUP(A10:A446,'[2]ABRIL 2020'!$B$3:$M$584,12,0) -> 2020-04-20 | O10: https://www.contratos.gov.co/consultas/detalleProceso.do?numConstancia=20-4-10688614
A11: 64580944 | B11: BIBIANA MARIA DIAZ RUIZ | C11: 1331 | D11: 1331-2020 | E11: ASISTENTE SUBGERENCIA CIENTIFICA | F11: 01 de Abril de 2020 | G11: 30 de Abril de 2020 | H11: 5800000 | I11: 5800000 | J11: BETTY PERTUZ | K11: SUBGERENCIA CIENTIFICA | L11: 1607 | M11: 2528 | N11: =VLOOKUP(A11:A446,'[2]ABRIL 2020'!$B$3:$M$584,12,0) -> 2020-04-20 | O11: https://www.contratos.gov.co/consultas/detalleProceso.do?numConstancia=20-4-10688614
A12: 5055447 | B12: CARLOS ALBERTO CARBONELL ALVAREZ | C12: =+C11+1 -> 1332 | D12: 1332-2020 | E12: AUDITOR MEDICO | F12: 01 de Abril de 2020 | G12: 30 de Abril de 2020 | H12: 4500000 | I12: =+H12*1 -> 4500000 | J12: BETTY PERTUZ | K12: SUBGERENCIA CIENTIFICA | L12: 1608 | M12: 2529 | N12: =VLOOKUP(A12:A446,'[2]ABRIL 2020'!$B$3:$M$584,12,0) -> 2020-04-20 | O12: https://www.contratos.gov.co/consultas/detalleProceso.do?numConstancia=20-4-10688789
A13: 22549719 | B13: CARMEN MELINA BOLAÑO COTES | C13: 1333 | D13: 1333-2020 | E13: AUXILIAR ADMINISTRATIVO- ESTADISTICA | F13: 01 de Abril de 2020 | G13: 30 de Abril de 2020 | H13: 1900000 | I13: 1900000 | J13: SANDRA SANMARTIN | K13: SUBGENTE ADMINISTRATIVO | L13: 1609 | M13: 2530 | N13: =VLOOKUP(A13:A446,'[2]ABRIL 2020'!$B$3:$M$584,12,0) -> 2020-04-20 | O13: https://www.contratos.gov.co/consultas/detalleProceso.do?numConstancia=20-4-10688802
A14: 8762035 | B14: CESAR AUGUSTO MERIÑO ESCORCIA | C14: 1334 | D14: 1334-2020 | E14: ORIENTADOR | F14: 01 de Abril de 2020 | G14: 30 de Abril de 2020 | H14: 1270000 | I14: 1270000 | J14: SANDRA SANMARTIN | K14: SUBGENTE ADMINISTRATIVO | L14: 1610 | M14: 2531 | N14: =VLOOKUP(A14:A446,'[2]ABRIL 2020'!$B$3:$M$584,12,0) -> 2020-04-20 | O14: https://www.contratos.gov.co/consultas/detalleProceso.do?numConstancia=20-4-10688834
A15: 1001798325 | B15: CINDY MILENA SARMIENTO MERIÑO | C15: 1335 | D15: 1335-2020 | E15: PROFESIONA RELACIONES INETRNACIONALES | F15: 01 de Abril de 2020 | G15: 30 de Abril de 2020 | H15: 4000000 | I15: 4000000 | J15: FABIAN COLPAS | K15: JEFE TALENTO HUMANO | L15: 1611 | M15: 2532 | N15: =VLOOKUP(A15:A446,'[2]ABRIL 2020'!$B$3:$M$584,12,0) -> 2020-04-20 | O15: https://www.contratos.gov.co/consultas/detalleProceso.do?numConstancia=20-4-10688848
A16: 32769708 | B16: CLAUDIA ARENAS ALVAREZ | C16: 1336 | D16: 1336-2020 | E16: APOYO GESTION CONTROL INTERNO | F16: 01 de Abril de 2020 | G16: 30 de Abril de 2020 | H16: 3500000 | I16: 3500000 | J16: SANDRA SANMARTIN | K16: SUBGENTE ADMINISTRATIVO | L16: 1612 | M16: 2533 | N16: =VLOOKUP(A16:A446,'[2]ABRIL 2020'!$B$3:$M$584,12,0) -> 2020-04-20 | O16: https://www.contratos.gov.co/consultas/detalleProceso.do?numConstancia=20-4-10688853
A17: 1043611198 | B17: CRISTIAN JESUS RODRIGUEZ QUIROZ | C17: 1337 | D17: 1337-2020 | E17: AUXILIAR PRESUPUESTO | F17: 01 de Abril de 2020 | G17: 30 de Abril de 2020 | H17: 1900000 | I17: 1900000 | J17: ALFONSO NICOLAS OQUENDO | K17: DIRECTOR FINANCIERO | L17: 1613 | M17: 2534 | N17: =VLOOKUP(A17:A446,'[2]ABRIL 2020'!$B$3:$M$584,12,0) -> 2020-04-20 | O17: https://www.contratos.gov.co/consultas/detalleProceso.do?numConstancia=20-4-10688877
A18: 1000149163 | B18: DAVID RICARDO BOTERO ALONSO | C18: 1338 | D18: 1338-2020 | E18: APOYO GESTION DOCUMENTAL JURIDICA | F18: 01 de Abril de 2020 | G18: 30 de Abril de 2020 | H18: 4000000 | I18: 4000000 | J18: ORNELLA FIORENTINO | K18: JEFE DE JURIDICA | L18: 1614 | M18: 2535 | N18: =VLOOKUP(A18:A446,'[2]ABRIL 2020'!$B$3:$M$584,12,0) -> 2020-04-20 | O18: https://www.contratos.gov.co/consultas/detalleProceso.do?numConstancia=20-4-10688900
A19: 44157462 | B19: DAYAN MARTINEZ PACHECO | C19: 1339 | D19: 1339-2020 | E19: ABOGADO EXTERNO | F19: 01 de Abril de 2020 | G19: 30 de Abril de 2020 | H19: 5000000 | I19: 5000000 | J19: ORNELLA FIORENTINO | K19: JEFE DE JURIDICA | L19: 1615 | M19: 2536 | N19: =VLOOKUP(A19:A446,'[2]ABRIL 2020'!$B$3:$M$584,12,0) -> 2020-04-20 | O19: https://www.contratos.gov.co/consultas/detalleProceso.do?numConstancia=20-4-10688912
A20: 19615791 | B20: DIOMAR NAVARRO ANGARITA | C20: 1340 | D20: 1340-2020 | E20: RECUPERACION DE CARTERA | F20: 01 de Abril de 2020 | G20: 30 de Abril de 2020 | H20: 2000000 | I20: 2000000 | J20: ORNELLA FIORENTINO | K20: JEFE JURIDICA | L20: 1616 | M20: 2537 | N20: =VLOOKUP(A20:A446,'[2]ABRIL 2020'!$B$3:$M$584,12,0) -> 2020-04-20 | O20: https://www.contratos.gov.co/consultas/detalleProceso.do?numConstancia=20-4-10688934
A21: 22704983 | B21: EGUIS ODILA ROLONG LAGUNA | C21: 1341 | D21: 1341-2020 | E21: ABOGADO EXTERNO | F21: 01 de Abril de 2020 | G21: 30 de Abril de 2020 | H21: 4000000 | I21: 4000000 | J21: FABIAN COLPAS | K21: JEFE TALENTO HUMANO | L21: 1617 | M21: 2538 | N21: =VLOOKUP(A21:A446,'[2]ABRIL 2020'!$B$3:$M$584,12,0) -> 2020-04-20 | O21: https://www.contratos.gov.co/consultas/detalleProceso.do?numConstancia=20-4-10688988
A22: 32787164 | B22: ELIANA CONSTANZA ARTETA HOYOS | C22: 1342 | D22: 1342-2020 | E22: CONTADOR | F22: 01 de Abril de 2020 | G22: 30 de Abril de 2020 | H22: 4000000 | I22: 4000000 | J22: SANDRA SANMARTIN | K22: SUBGENTE ADMINISTRATIVO | L22: 1618 | M22: 2539 | N22: =VLOOKUP(A22:A446,'[2]ABRIL 2020'!$B$3:$M$584,12,0) -> 2020-04-20 | O22: https://www.contratos.gov.co/consultas/detalleProceso.do?numConstancia=20-4-10689037
A23: 8633055 | B23: ELIECER POLO CASTRO | C23: 1343 | D23: 1343-2020 | E23: ABOGADO EXTERNO | F23: 01 de Abril de 2020 | G23: 30 de Abril de 2020 | H23: 5800000 | I23: 5800000 | J23: ORNELLA FIORENTINO | K23: JEFE DE JURIDICA | L23: 1619 | M23: 2540 | N23: =VLOOKUP(A23:A446,'[2]ABRIL 2020'!$B$3:$M$584,12,0) -> 2020-04-20 | O23: https://www.contratos.gov.co/consultas/detalleProceso.do?numConstancia=20-4-10689055
A24: 1140831753 | B24: ENNY CAROLINA ROCHA HERNANDEZ | C24: 1344 | D24: 1344-2020 | E24: ABOGADO EXTERNO | F24: 01 de Abril de 2020 | G24: 30 de Abril de 2020 | H24: 5000000 | I24: 5000000 | J24: ORNELLA FIORENTINO | K24: JEFE DE JURIDICA | L24: 1620 | M24: 2541 | N24: =VLOOKUP(A24:A446,'[2]ABRIL 2020'!$B$3:$M$584,12,0) -> 2020-04-20 | O24: https://www.contratos.gov.co/consultas/detalleProceso.do?numConstancia=20-4-10689083
A25: 32866006 | B25: ERIKA ASCENCIO MARQUEZ | C25: 1345 | D25: 1345-2020 | E25: PROFESIONAL -CONTRATACION | F25: 01 de Abril de 2020 | G25: 30 de Abril de 2020 | H25: 3500000 | I25: 3500000 | J25: ORNELLA FIORENTINO | K25: JEFE DE JURIDICA | L25: 1621 | M25: 2542 | N25: =VLOOKUP(A25:A446,'[2]ABRIL 2020'!$B$3:$M$584,12,0) -> 2020-04-20 | O25: https://www.contratos.gov.co/consultas/detalleProceso.do?numConstancia=20-4-10689099
A26: 32583911 | B26: EVA ISABEL ROSALES NAVARRO | C26: 1346 | D26: 1346-2020 | E26: ASESOR GERENCIA | F26: 01 de Abril de 2020 | G26: 30 de Abril de 2020 | H26: 5000000 | I26: 5000000 | J26: ROSA MADERA | K26: GERENTE | L26: 1622 | M26: 2543 | N26: =VLOOKUP(A26:A446,'[2]ABRIL 2020'!$B$3:$M$584,12,0) -> 2020-04-20 | O26: https://www.contratos.gov.co/consultas/detalleProceso.do?numConstancia=20-4-10689134
A27: 22504109 | B27: FLOR MILENA GOICOECHEA OROZCO | C27: 1347 | D27: 1347-2020 | E27: AUXILIAR DE FACTURACIÓN | F27: 01 de Abril de 2020 | G27: 30 de Abril de 2020 | H27: 2500000 | I27: 2500000 | J27: SANDRA SANMARTIN | K27: SUBGENTE ADMINISTRATIVO | L27: 1623 | M27: 2544 | N27: =VLOOKUP(A27:A446,'[2]ABRIL 2020'!$B$3:$M$584,12,0) -> 2020-04-20 | O27: https://www.contratos.gov.co/consultas/detalleProceso.do?numConstancia=20-4-10689146
A28: 72328953 | B28: FRANCISCO ALCIDES CARRANZA MENDOZA | C28: 1348 | D28: 1348-2020 | E28: AUXILIAR RECURSOS FISICOS | F28: 01 de Abril de 2020 | G28: 30 de Abril de 2020 | H28: 1900000 | I28: 1900000 | J28: SANDRA SANMARTIN | K28: SUBGENTE ADMINISTRATIVO | L28: 1624 | M28: 2545 | N28: =VLOOKUP(A28:A446,'[2]ABRIL 2020'!$B$3:$M$584,12,0) -> 2020-04-20 | O28: https://www.contratos.gov.co/consultas/detalleProceso.do?numConstancia=20-4-10689162
A29: 1042416953 | B29: GABRIEL JOSE MONTIEL CERVANTES | C29: 1349 | D29: 1349-2020 | E29: COORDINADOR DE HARDWARE | F29: 01 de Abril de 2020 | G29: 30 de Abril de 2020 | H29: 3000000 | I29: 3000000 | J29: ZULI ROMERO | K29: COORDINADORA TIC | L29: 1625 | M29: 2546 | N29: =VLOOKUP(A29:A446,'[2]ABRIL 2020'!$B$3:$M$584,12,0) -> 2020-04-20 | O29: https://www.contratos.gov.co/consultas/detalleProceso.do?numConstancia=20-4-10689169
A30: 1143425564 | B30: HECTOR JOSE BARRAZA GUTIERREZ | C30: 1350 | D30: 1350-2020 | E30: ASESOR DE PRESUPUESTO | F30: 01 de Abril de 2020 | G30: 30 de Abril de 2020 | H30: 4000000 | I30: 4000000 | J30: ALFONSO NICOLAS OQUENDO | K30: DIRECTOR FINANCIERO | L30: 1626 | M30: 2547 | N30: =VLOOKUP(A30:A446,'[2]ABRIL 2020'!$B$3:$M$584,12,0) -> 2020-04-20 | O30: https://www.contratos.gov.co/consultas/detalleProceso.do?numConstancia=20-4-10689176
A31: 1045670289 | B31: HOLMAN ALEXANDER AVILA FERNANDEZ | C31: 1351 | D31: 1351-2020 | E31: FACTURACION CENTRAL | F31: 01 de Abril de 2020 | G31: 30 de Abril de 2020 | H31: 2500000 | I31: 2500000 | J31: SANDRA SANMARTIN | K31: SUBGENTE ADMINISTRATIVO | L31: 1627 | M31: 2548 | N31: =VLOOKUP(A31:A446,'[2]ABRIL 2020'!$B$3:$M$584,12,0) -> 2020-04-20 | O31: https://www.contratos.gov.co/consultas/detalleProceso.do?numConstancia=20-4-10689230
A32: 72045976 | B32: HUMBERTO ZACARIAS CADAVID ALDANA | C32: 1352 | D32: 1352-2020 | E32: ASESOR GERENCIA | F32: 01 de Abril de 2020 | G32: 30 de Abril de 2020 | H32: 4000000 | I32: 4000000 | J32: ROSA MADERA | K32: GERENTE | L32: 1628 | M32: 2549 | N32: =VLOOKUP(A32:A446,'[2]ABRIL 2020'!$B$3:$M$584,12,0) -> 2020-04-20 | O32: https://www.contratos.gov.co/consultas/detalleProceso.do?numConstancia=20-4-10690109
A33: 1129571476 | B33: ILIANA MATOS RAMOS | C33: 1353 | D33: 1353-2020 | E33: ABOGADO EXTERNO | F33: 01 de Abril de 2020 | G33: 30 de Abril de 2020 | H33: 4000000 | I33: 4000000 | J33: ORNELLA FIORENTINO | K33: JEFE DE JURIDICA | L33: 1629 | M33: 2550 | N33: =VLOOKUP(A33:A447,'[2]ABRIL 2020'!$B$3:$M$584,12,0) -> 2020-04-20 | O33: https://www.contratos.gov.co/consultas/detalleProceso.do?numConstancia=20-4-10690143
A34: 1003265428 | B34: ISABEL CURIEL CORTINA | C34: 1354 | D34: 1354-2020 | E34: GESTION DOCUMENTAL JURIDICA | F34: 01 de Abril de 2020 | G34: 30 de Abril de 2020 | H34: 1270000 | I34: 1270000 | J34: ORNELLA FIORENTINO | K34: JEFE DE JURIDICA | L34: 1630 | M34: 2551 | N34: =VLOOKUP(A34:A448,'[2]ABRIL 2020'!$B$3:$M$584,12,0) -> 2020-04-20 | O34: https://www.contratos.gov.co/consultas/detalleProceso.do?numConstancia=20-4-10690151
A35: 1042447104 | B35: IVOR ANDRES SANJUAN PEREZ | C35: 1355 | D35: 1355-2020 | E35: AUXILIAR RECURSOS FISICOS | F35: 01 de Abril de 2020 | G35: 30 de Abril de 2020 | H35: 2500000 | I35: 2500000 | J35: SANDRA SANMARTIN | K35: SUBGENTE ADMINISTRATIVO | L35: 1631 | M35: 2552 | N35: =VLOOKUP(A35:A449,'[2]ABRIL 2020'!$B$3:$M$584,12,0) -> 2020-04-20 | O35: https://www.contratos.gov.co/consultas/detalleProceso.do?numConstancia=20-4-10690174
A36: 8495176 | B36: JAIME ALBERTO ALVAREZ NORIEGA | C36: 1356 | D36: 1356-2020 | E36: INGENIERO AMBIENTAL | F36: 01 de Abril de 2020 | G36: 30 de Abril de 2020 | H36: 3000000 | I36: 3000000 | J36: SANDRA SANMARTIN | K36: SUBGENTE ADMINISTRATIVO | L36: 1632 | M36: 2553 | N36: =VLOOKUP(A36:A450,'[2]ABRIL 2020'!$B$3:$M$584,12,0) -> 2020-04-20 | O36: https://www.contratos.gov.co/consultas/detalleProceso.do?numConstancia=20-4-10690197
A37: 32874188 | B37: JALICSSA ARRIETA ORTEGA | C37: 1357 | D37: 1357-2020 | E37: PSICOLOGA | F37: 01 de Abril de 2020 | G37: 30 de Abril de 2020 | H37: 3000000 | I37: 3000000 | J37: BETTY PERTUZ | K37: SUBGERENCIA CIENTIFICA | L37: 1633 | M37: 2554 | N37: =VLOOKUP(A37:A451,'[2]ABRIL 2020'!$B$3:$M$584,12,0) -> 2020-04-20 | O37: https://www.contratos.gov.co/consultas/detalleProceso.do?numConstancia=20-4-10690300
A38: 8566485 | B38: JAVIER VLADIMIR CASTRO POVEA | C38: 1358 | D38: 1358-2020 | E38: ABOGADO - TALENTO HUMANO | F38: 01 de Abril de 2020 | G38: 30 de Abril de 2020 | H38: 5000000 | I38: 5000000 | J38: FABIAN COLPAS | K38: JEFE TALENTO HUMANO | L38: 1634 | M38: 2555 | N38: =VLOOKUP(A38:A452,'[2]ABRIL 2020'!$B$3:$M$584,12,0) -> 2020-04-20 | O38: https://www.contratos.gov.co/consultas/detalleProceso.do?numConstancia=20-4-10690309
A39: 1140871897 | B39: JESICA FERNANDA DE CASTRO MANTILLA | C39: 1359 | D39: 1359-2020 | E39: INGENIERA QUIMICA | F39: 01 de Abril de 2020 | G39: 30 de Abril de 2020 | H39: 4000000 | I39: 4000000 | J39: BETTY PERTUZ | K39: SUBGERENTE CIENTIFICO | L39: 1635 | M39: 2556 | N39: =VLOOKUP(A39:A453,'[2]ABRIL 2020'!$B$3:$M$584,12,0) -> 2020-04-20 | O39: https://www.contratos.gov.co/consultas/detalleProceso.do?numConstancia=20-4-10690319
A40: 73188364 | B40: JORGE MAURICIO MONTOYA OCHOA | C40: 1360 | D40: 1360-2020 | E40: AUXILIAR DE RECURSOS FISICOS | F40: 01 de Abril de 2020 | G40: 30 de Abril de 2020 | H40: 1900000 | I40: 1900000 | J40: SANDRA SANMARTIN | K40: SUBGENTE ADMINISTRATIVO | L40: 1636 | M40: 2557 | N40: =VLOOKUP(A40:A454,'[2]ABRIL 2020'!$B$3:$M$584,12,0) -> 2020-04-20
A41: 8776312 | B41: JORGE RIVERA MEZA | C41: 1361 | D41: 1361-2020 | E41: AUXILIAR RECURSOS FISICOS | F41: 01 de Abril de 2020 | G41: 30 de Abril de 2020 | H41: 1900000 | I41: 1900000 | J41: SANDRA SANMARTIN | K41: SUBGENTE ADMINISTRATIVO | L41: 1637 | M41: 2558 | N41: =VLOOKUP(A41:A455,'[2]ABRIL 2020'!$B$3:$M$584,12,0) -> 2020-04-20 | O41: https://www.contratos.gov.co/consultas/detalleProceso.do?numConstancia=20-4-10690343
A42: 1140855812 | B42: JOSE DAVID NOGUERA SOTO | C42: 1362 | D42: 1362-2020 | E42: GESTIÓN DOCUMENTAL CONTRATACIÓN | F42: 01 de Abril de 2020 | G42: 30 de Abril de 2020 | H42: 2300000 | I42: 2300000 | J42: ORNELLA FIORENTINO | K42: JEFE DE JURIDICA | L42: 1638 | M42: 2559 | N42: =VLOOKUP(A42:A456,'[2]ABRIL 2020'!$B$3:$M$584,12,0) -> 2020-04-20 | O42: https://www.contratos.gov.co/consultas/detalleProceso.do?numConstancia=20-4-10690352
A43: 1045698343 | B43: JOSE FRANCISCO INFANZON CASTRO | C43: 1363 | D43: 1363-2020 | E43: ASESOR | F43: 01 de Abril de 2020 | G43: 30 de Abril de 2020 | H43: 5800000 | I43: 5800000 | J43: ROSA MADERA | K43: GERENTE | L43: 1639 | M43: 2560 | N43: =VLOOKUP(A43:A457,'[2]ABRIL 2020'!$B$3:$M$584,12,0) -> 2020-04-20 | O43: https://www.contratos.gov.co/consultas/detalleProceso.do?numConstancia=20-4-10690361
A44: 72434909 | B44: JOSE IGNACIO DE ALBA MARTINEZ | C44: 1364 | D44: 1364-2020 | E44: AUXILIAR DE ARCHIVO TALENTO HUMANO | F44: 01 de Abril de 2020 | G44: 30 de Abril de 2020 | H44: 3000000 | I44: 3000000 | J44: FABIAN COLPAS | K44: JEFE TALENTO HUMANO | L44: 1640 | M44: 2561 | N44: =VLOOKUP(A44:A458,'[2]ABRIL 2020'!$B$3:$M$584,12,0) -> 2020-04-20 | O44: https://www.contratos.gov.co/consultas/detalleProceso.do?numConstancia=20-4-10690368
A45: 72271514 | B45: JOSE LUIS FLOREZ DIAZ | C45: 1365 | D45: 1365-2020 | E45: AUXILIAR ADMINISTRATIVO VENTANILLA | F45: 01 de Abril de 2020 | G45: 30 de Abril de 2020 | H45: 1900000 | I45: 1900000 | J45: SANDRA SANMARTIN | K45: SUBGENTE ADMINISTRATIVO | L45: 1641 | M45: 2562 | N45: =VLOOKUP(A45:A459,'[2]ABRIL 2020'!$B$3:$M$584,12,0) -> 2020-04-20 | O45: https://www.contratos.gov.co/consultas/detalleProceso.do?numConstancia=20-4-10690375
A46: 72095954 | B46: JUAN CARLOS BARROS CARO | C46: 1366 | D46: 1366-2020 | E46: ASESOR GERENCIA | F46: 01 de Abril de 2020 | G46: 30 de Abril de 2020 | H46: 4500000 | I46: 4500000 | J46: ROSA MADERA | K46: GERENTE | L46: 1642 | M46: 2563 | N46: =VLOOKUP(A46:A460,'[2]ABRIL 2020'!$B$3:$M$584,12,0) -> 2020-04-20 | O46: https://www.contratos.gov.co/consultas/detalleProceso.do?numConstancia=20-4-10690387
A47: 72278234 | B47: JUAN GABRIEL FRANCO PRENT | C47: 1367 | D47: 1367-2020 | E47: COORDINADOR DE FACTURACION | F47: 01 de Abril de 2020 | G47: 30 de Abril de 2020 | H47: 4375000 | I47: 4375000 | J47: SANDRA SANMARTIN | K47: SUBGENTE ADMINISTRATIVO | L47: 1643 | M47: 2564 | N47: =VLOOKUP(A47:A461,'[2]ABRIL 2020'!$B$3:$M$584,12,0) -> 2020-04-20 | O47: https://www.contratos.gov.co/consultas/detalleProceso.do?numConstancia=20-4-10690444
A48: 3731100 | B48: JULIAN ENRIQUE ARTETA MOLINA | C48: 1368 | D48: 1368-2020 | E48: AUDITOR DE FACTURACIÓN | F48: 01 de Abril de 2020 | G48: 30 de Abril de 2020 | H48: 1900000 | I48: 1900000 | J48: SANDRA SANMARTIN | K48: SUBGENTE ADMINISTRATIVO | L48: 1644 | M48: 2565 | N48: =VLOOKUP(A48:A462,'[2]ABRIL 2020'!$B$3:$M$584,12,0) -> 2020-04-20 | O48: https://www.contratos.gov.co/consultas/detalleProceso.do?numConstancia=20-4-10690458
A49: 1010137665 | B49: KAROLINE JUDITH MORENO VARELO | C49: 1369 | D49: 1369-2020 | E49: AUXILIAR ADMINISTRATIVO - COORDINADOR PYP | F49: 01 de Abril de 2020 | G49: 30 de Abril de 2020 | H49: 1500000 | I49: 1500000 | J49: NILSA ARIZA MARQUEZ | K49: COORDINADOR PYP | L49: 1645 | M49: 2566 | N49: =VLOOKUP(A49:A463,'[2]ABRIL 2020'!$B$3:$M$584,12,0) -> 2020-04-20 | O49: https://www.contratos.gov.co/consultas/detalleProceso.do?numConstancia=20-4-10690458
A50: 22804794 | B50: KATHERINE GUERRERO SEPULVEDA | C50: 1370 | D50: 1370-2020 | E50: ABOGADO EXTERNO - CONTRATACION | F50: 01 de Abril de 2020 | G50: 30 de Abril de 2020 | H50: 5800000 | I50: 5800000 | J50: ORNELLA FIORENTINO | K50: JEFE DE JURIDICA | L50: 1646 | M50: 2567 | N50: =VLOOKUP(A50:A464,'[2]ABRIL 2020'!$B$3:$M$584,12,0) -> 2020-04-20 | O50: https://www.contratos.gov.co/consultas/detalleProceso.do?numConstancia=20-4-10690487
A51: 1042439853 | B51: KERVY DIYAN JINETTE BARRIOS | C51: 1371 | D51: 1371-2020 | E51: AUXILIAR ADMINISTRATIVODE LA RESOLUCIÓN 2463 | F51: 01 de Abril de 2020 | G51: 30 de Abril de 2020 | H51: 1900000 | I51: 1900000 | J51: BETTY PERTUZ | K51: SUBGERENCIA CIENTIFICA | L51: 1647 | M51: 2568 | N51: =VLOOKUP(A51:A465,'[2]ABRIL 2020'!$B$3:$M$584,12,0) -> 2020-04-20 | O51: https://www.contratos.gov.co/consultas/detalleProceso.do?numConstancia=20-4-10690503
A52: 1140847928 | B52: LEIDY DANIELA WILSON PEZZOTI | C52: 1372 | D52: 1372-2020 | E52: AUXILIAR ADMINISTRATIVO VENTANILLA | F52: 01 de Abril de 2020 | G52: 30 de Abril de 2020 | H52: 1900000 | I52: 1900000 | J52: SANDRA SANMARTIN | K52: SUBGENTE ADMINISTRATIVO | L52: 1648 | M52: 2569 | N52: =VLOOKUP(A52:A466,'[2]ABRIL 2020'!$B$3:$M$584,12,0) -> 2020-04-20 | O52: https://www.contratos.gov.co/consultas/detalleProceso.do?numConstancia=20-4-10690524
A53: 72053529 | B53: LEINER DARIO MEDINA HERRERA | C53: 1373 | D53: 1373-2020 | E53: CONTROL INTERNO | F53: 01 de Abril de 2020 | G53: 30 de Abril de 2020 | H53: 2500000 | I53: 2500000 | J53: SANDRA SANMARTIN | K53: SUBGENTE ADMINISTRATIVO | L53: 1649 | M53: 2570 | N53: =VLOOKUP(A53:A467,'[2]ABRIL 2020'!$B$3:$M$584,12,0) -> 2020-04-20 | O53: https://www.contratos.gov.co/consultas/detalleProceso.do?numConstancia=20-4-10690541
A54: 1140846298 | B54: LENIN ALVAREZ PINEDA | C54: 1374 | D54: 1374-2020 | E54: INGENIERO DE SOPORTE | F54: 01 de Abril de 2020 | G54: 30 de Abril de 2020 | H54: 3000000 | I54: 3000000 | J54: NILSA ARIZA MARQUEZ | K54: COORDINADOR PYP | L54: 1650 | M54: 2571 | N54: =VLOOKUP(A54:A468,'[2]ABRIL 2020'!$B$3:$M$584,12,0) -> 2020-04-20 | O54: https://www.contratos.gov.co/consultas/detalleProceso.do?numConstancia=20-4-10690568
A55: 40981378 | B55: LIDYS CASTILLO TOVAR | C55: 1375 | D55: 1375-2020 | E55: PROFESIONAL OFICINA PAGADURIA | F55: 01 de Abril de 2020 | G55: 30 de Abril de 2020 | H55: 4000000 | I55: 4000000 | J55: LISGLENIS BUENO BRICEÑO | K55: JEFE TESORERIA | L55: 1651 | M55: 2572 | N55: =VLOOKUP(A55:A469,'[2]ABRIL 2020'!$B$3:$M$584,12,0) -> 2020-04-20 | O55: https://www.contratos.gov.co/consultas/detalleProceso.do?numConstancia=20-4-10691104
A56: 72336152 | B56: LUIS EDUARDO LLANOS NAVARRO | C56: 1376 | D56: 1376-2020 | E56: AUDITOR DE P Y P | F56: 01 de Abril de 2020 | G56: 30 de Abril de 2020 | H56: 4000000 | I56: 4000000 | J56: BETTY PERTUZ | K56: SUBGERENCIA CIENTIFICA | L56: 1652 | M56: 2573 | N56: =VLOOKUP(A56:A470,'[2]ABRIL 2020'!$B$3:$M$584,12,0) -> 2020-04-20 | O56: https://www.contratos.gov.co/consultas/detalleProceso.do?numConstancia=20-4-10691111
A57: 1140889557 | B57: MARA PAOLA DE LEON NIEBLES | C57: 1377 | D57: 1377-2020 | E57: AUXILIAR ADMINISTRATIVO-FINANCIERA | F57: 01 de Abril de 2020 | G57: 30 de Abril de 2020 | H57: 1900000 | I57: 1900000 | J57: SANDRA SANMARTIN | K57: SUBGENTE ADMINISTRATIVO | L57: 1653 | M57: 2574 | N57: =VLOOKUP(A57:A471,'[2]ABRIL 2020'!$B$3:$M$584,12,0) -> 2020-04-20 | O57: https://www.contratos.gov.co/consultas/detalleProceso.do?numConstancia=20-4-10691118
A58: 44160436 | B58: MARCELA JOHANA DIAZ DE LA PUENTE | C58: 1378 | D58: 1378-2020 | E58: JURIDICO TALENTO HUMANO | F58: 01 de Abril de 2020 | G58: 30 de Abril de 2020 | H58: 3000000 | I58: 3000000 | J58: FABIAN COLPAS | K58: JEFE TALENTO HUMANO | L58: 1654 | M58: 2575 | N58: =VLOOKUP(A58:A472,'[2]ABRIL 2020'!$B$3:$M$584,12,0) -> 2020-04-20 | O58: https://www.contratos.gov.co/consultas/detalleProceso.do?numConstancia=20-4-10691127
A59: 22610065 | B59: MARIA ALEXANDRA VILLA SOLANO | C59: 1379 | D59: 1379-2020 | E59: ASESOR DE PRESUPUESTO | F59: 01 de Abril de 2020 | G59: 30 de Abril de 2020 | H59: 5000000 | I59: 5000000 | J59: ALFONSO NICOLAS OQUENDO | K59: DIRECTOR FINANCIERO | L59: 1655 | M59: 2576 | N59: =VLOOKUP(A59:A473,'[2]ABRIL 2020'!$B$3:$M$584,12,0) -> 2020-04-20 | O59: https://www.contratos.gov.co/consultas/detalleProceso.do?numConstancia=20-4-10691136
A60: 1140858071 | B60: MARIA LUISA FERNANDA ARAGON NIGRINI | C60: 1380 | D60: 1380-2020 | E60: ABOGADO EXTERNO | F60: 01 de Abril de 2020 | G60: 30 de Abril de 2020 | H60: 5800000 | I60: 5800000 | J60: ORNELLA FIORENTINO | K60: JEFE DE JURIDICA | L60: 1656 | M60: 2577 | N60: =VLOOKUP(A60:A474,'[2]ABRIL 2020'!$B$3:$M$584,12,0) -> 2020-04-20 | O60: https://www.contratos.gov.co/consultas/detalleProceso.do?numConstancia=20-4-10691147
A61: 1042421404 | B61: MARIAM DEL CARMEN CANTILLO MONTERO | C61: 1381 | D61: 1381-2020 | E61: AUDITOR DE ODONTOLOGIA | F61: 01 de Abril de 2020 | G61: 30 de Abril de 2020 | H61: 3000000 | I61: 3000000 | J61: BETTY PERTUZ | K61: SUBGERENCIA CIENTIFICA | L61: 1657 | M61: 2578 | N61: =VLOOKUP(A61:A475,'[2]ABRIL 2020'!$B$3:$M$584,12,0) -> 2020-04-20 | O61: https://www.contratos.gov.co/consultas/detalleProceso.do?numConstancia=20-4-10691217
A62: 22732194 | B62: MARLEY VASQUEZ VARGAS | C62: 1382 | D62: 1382-2020 | E62: AUXILIAR DE FACTURACION | F62: 01 de Abril de 2020 | G62: 30 de Abril de 2020 | H62: 1700000 | I62: 1700000 | J62: SANDRA SANMARTIN | K62: SUBGENTE ADMINISTRATIVO | L62: 1658 | M62: 2579 | N62: =VLOOKUP(A62:A476,'[2]ABRIL 2020'!$B$3:$M$584,12,0) -> 2020-04-20 | O62: https://www.contratos.gov.co/consultas/detalleProceso.do?numConstancia=20-4-10691222
A63: 44205287 | B63: MARTHA KATERINE MEJIA FRUTO | C63: 1383 | D63: 1383-2020 | E63: AUXILIAR ADMINISTRATIVO - RECEPCION | F63: 01 de Abril de 2020 | G63: 30 de Abril de 2020 | H63: 1900000 | I63: 1900000 | J63: SANDRA SANMARTIN | K63: SUBGENTE ADMINISTRATIVO | L63: 1659 | M63: 2580 | N63: =VLOOKUP(A63:A477,'[2]ABRIL 2020'!$B$3:$M$584,12,0) -> 2020-04-20 | O63: https://www.contratos.gov.co/consultas/detalleProceso.do?numConstancia=20-4-10691234
A64: 1045721126 | B64: MARYURIS JOANNA GALVAN NAVARRO | C64: 1384 | D64: 1384-2020 | E64: COORDINADOR DE LABORATORIO | F64: 01 de Abril de 2020 | G64: 30 de Abril de 2020 | H64: 5000000 | I64: 5000000 | J64: BETTY PERTUZ | K64: SUBGERENCIA CIENTIFICA | L64: 1660 | M64: 2581 | N64: =VLOOKUP(A64:A478,'[2]ABRIL 2020'!$B$3:$M$584,12,0) -> 2020-04-20 | O64: https://www.contratos.gov.co/consultas/detalleProceso.do?numConstancia=20-4-10691240
A65: 1043876764 | B65: MELANI ISABEL PERTUZ HERRERA | C65: 1385 | D65: 1385-2020 | E65: AUXILIAR ADMINISTRATIVO - SUBGERENCIA ADMINISTRATIVA | F65: 01 de Abril de 2020 | G65: 30 de Abril de 2020 | H65: 1900000 | I65: 1900000 | J65: SANDRA SANMARTIN | K65: SUBGENTE ADMINISTRATIVO | L65: 1661 | M65: 2582 | N65: =VLOOKUP(A65:A479,'[2]ABRIL 2020'!$B$3:$M$584,12,0) -> 2020-04-20 | O65: https://www.contratos.gov.co/consultas/detalleProceso.do?numConstancia=20-4-10691244
A66: 1129532724 | B66: MICHELLY SANDOVAL ACUÑA | C66: 1386 | D66: 1386-2020 | E66: AUDITOR DE CALIDAD | F66: 01 de Abril de 2020 | G66: 30 de Abril de 2020 | H66: 6044000 | I66: 6044000 | J66: BETTY PERTUZ | K66: SUBGERENCIA CIENTIFICA | L66: 1662 | M66: 2583 | N66: =VLOOKUP(A66:A480,'[2]ABRIL 2020'!$B$3:$M$584,12,0) -> 2020-04-20 | O66: https://www.contratos.gov.co/consultas/detalleProceso.do?numConstancia=20-4-10691256
A67: 22642515 | B67: NOHEMI ESPERANZA CASTRO LOPEZ | C67: 1387 | D67: 1396-2020 | E67: AUDITORA DE SERVICIOS DE SALUD | F67: 01 de Abril de 2020 | G67: 30 de Abril de 2020 | H67: 4000000 | I67: 4000000 | J67: BETTY PERTUZ | K67: SUBGERENCIA CIENTIFICA | L67: 1672 | M67: 2593 | N67: =VLOOKUP(A67:A481,'[2]ABRIL 2020'!$B$3:$M$584,12,0) -> 2020-04-21 | O67: https://www.contratos.gov.co/consultas/detalleProceso.do?numConstancia=20-4-10691738
A68: 55238408 | B68: MILAGROS YANETH SIMANCA RODRIGUEZ | C68: 1388 | D68: 1388-2020 | E68: AUXILIAR AREA FINANCIERA | F68: 01 de Abril de 2020 | G68: 30 de Abril de 2020 | H68: 3500000 | I68: 3500000 | J68: SANDRA SANMARTIN | K68: SUBGENTE ADMINISTRATIVO | L68: 1664 | M68: 2585 | N68: =VLOOKUP(A68:A482,'[2]ABRIL 2020'!$B$3:$M$584,12,0) -> 2020-04-20 | O68: https://www.contratos.gov.co/consultas/detalleProceso.do?numConstancia=20-4-10691270
A69: 72268005 | B69: MILTON SOLARTE RODRIGUEZ | C69: 1389 | D69: 1389-2020 | E69: TECNICO DE BASES DE DATOS | F69: 01 de Abril de 2020 | G69: 30 de Abril de 2020 | H69: 3000000 | I69: 3000000 | J69: SANDRA SANMARTIN | K69: SUBGENTE ADMINISTRATIVO | L69: 1665 | M69: 2586 | N69: =VLOOKUP(A69:A483,'[2]ABRIL 2020'!$B$3:$M$584,12,0) -> 2020-04-20 | O69: https://www.contratos.gov.co/consultas/detalleProceso.do?numConstancia=20-4-10691273
A70: 32872397 | B70: MONICA PATRICIA DOVALE GALLEGO | C70: 1390 | D70: 1390-2020 | E70: COORDINADOR SEGURIDAD Y SALUD TRABAJO | F70: 01 de Abril de 2020 | G70: 30 de Abril de 2020 | H70: 5800000 | I70: 5800000 | J70: FABIAN COLPAS | K70: JEFE TALENTO HUMANO | L70: 1666 | M70: 2587 | N70: =VLOOKUP(A70:A484,'[2]ABRIL 2020'!$B$3:$M$584,12,0) -> 2020-04-20 | O70: https://www.contratos.gov.co/consultas/detalleProceso.do?numConstancia=20-4-10691276
A71: 55239101 | B71: NATALI ANDREA NIEBLES JURADO | C71: 1391 | D71: 1391-2020 | E71: AUDITOR DE CALIDAD (JEFE DE UNIDAD) | F71: 01 de Abril de 2020 | G71: 30 de Abril de 2020 | H71: 5800000 | I71: 5800000 | J71: BETTY PERTUZ | K71: SUBGERENCIA CIENTIFICA | L71: 1667 | M71: 2588 | N71: =VLOOKUP(A71:A485,'[2]ABRIL 2020'!$B$3:$M$584,12,0) -> 2020-04-20 | O71: https://www.contratos.gov.co/consultas/detalleProceso.do?numConstancia=20-4-10691282
A72: 52618443 | B72: NATALIA ALONSO CARVAJAL | C72: 1392 | D72: 1392-2020 | E72: ASESOR GERENCIA | F72: 01 de Abril de 2020 | G72: 30 de Abril de 2020 | H72: 5800000 | I72: 5800000 | J72: ROSA MADERA | K72: GERENTE | L72: 1668 | M72: 2589 | N72: =VLOOKUP(A72:A486,'[2]ABRIL 2020'!$B$3:$M$584,12,0) -> 2020-04-21 | O72: https://www.contratos.gov.co/consultas/detalleProceso.do?numConstancia=20-4-10691733
A73: 1010179685 | B73: NAYIVI OSPINA ARROYAVE | C73: 1393 | D73: 1393-2020 | E73: SALUD OCUPACIONAL SEGURIDAD TRABAJO | F73: 01 de Abril de 2020 | G73: 30 de Abril de 2020 | H73: 3180000 | I73: 3180000 | J73: FABIAN COLPAS | K73: JEFE TALENTO HUMANO | L73: 1669 | M73: 2590 | N73: =VLOOKUP(A73:A487,'[2]ABRIL 2020'!$B$3:$M$584,12,0) -> 2020-04-21 | O73: https://www.contratos.gov.co/consultas/detalleProceso.do?numConstancia=20-4-10691734
A74: 8498281 | B74: NESTOR HERRERA BOCANEGRA | C74: 1394 | D74: 1394-2020 | E74: ASESOR FINANCIERO | F74: 01 de Abril de 2020 | G74: 30 de Abril de 2020 | H74: 4500000 | I74: 4500000 | J74: ALFONSO NICOLAS OQUENDO | K74: DIRECTOR FINANCIERO | L74: 1670 | M74: 2591 | N74: =VLOOKUP(A74:A488,'[2]ABRIL 2020'!$B$3:$M$584,12,0) -> 2020-04-21 | O74: https://www.contratos.gov.co/consultas/detalleProceso.do?numConstancia=20-4-10691735
A75: 8603175 | B75: NILSON ORTEGA JIMENEZ | C75: 1395 | D75: 1395-2020 | E75: AUXILIAR CONTABLE | F75: 01 de Abril de 2020 | G75: 30 de Abril de 2020 | H75: 1900000 | I75: 1900000 | J75: ALFONSO NICOLAS OQUENDO | K75: DIRECTOR FINANCIERO | L75: 1671 | M75: 2592 | N75: =VLOOKUP(A75:A489,'[2]ABRIL 2020'!$B$3:$M$584,12,0) -> 2020-04-21 | O75: https://www.contratos.gov.co/consultas/detalleProceso.do?numConstancia=20-4-10691736
A76: 32607428 | B76: TEMILDA MARIA PERTUZ PEREZ | C76: =+C75+1 -> 1396 | D76: 1411-2020 | E76: AUDITOR DE HABILITACIONES | F76: 01 de Abril de 2020 | G76: 30 de Abril de 2020 | H76: 3180000 | I76: =+H76*1 -> 3180000 | J76: BETTY PERTUZ | K76: SUBGERENCIA CIENTIFICA | L76: 1687 | M76: 2608 | N76: =VLOOKUP(A76:A490,'[2]ABRIL 2020'!$B$3:$M$584,12,0) -> 2020-04-21 | O76: https://www.contratos.gov.co/consultas/detalleProceso.do?numConstancia=20-4-10692563
A77: 1047340446 | B77: OSCAR MAURICIO MARENCO ROMERO | C77: 1397 | D77: 1397-2020 | E77: MENSAJERO | F77: 01 de Abril de 2020 | G77: 30 de Abril de 2020 | H77: 1800000 | I77: 1800000 | J77: BETTY PERTUZ | K77: SUBGERENCIA CIENTIFICA | L77: 1673 | M77: 2594 | N77: =VLOOKUP(A77:A491,'[2]ABRIL 2020'!$B$3:$M$584,12,0) -> 2020-04-21 | O77: https://www.contratos.gov.co/consultas/detalleProceso.do?numConstancia=20-4-10691739
A78: 72015109 | B78: PEDRO CARLOS CANTILLO BOLIVAR | C78: 1398 | D78: 1398-2020 | E78: ASESOR DE PRESUPUESTO | F78: 01 de Abril de 2020 | G78: 30 de Abril de 2020 | H78: 4000000 | I78: 4000000 | J78: ALFONSO NICOLAS OQUENDO | K78: DIRECTOR FINANCIERO | L78: 1674 | M78: 2595 | N78: =VLOOKUP(A78:A492,'[2]ABRIL 2020'!$B$3:$M$584,12,0) -> 2020-04-21 | O78: https://www.contratos.gov.co/consultas/detalleProceso.do?numConstancia=20-4-10691740
A79: 72293492 | B79: RODOLFO ENRIQUE NARVAEZ GUTIERREZ | C79: 1399 | D79: 1399-2020 | E79: ESTADISTICA | F79: 01 de Abril de 2020 | G79: 30 de Abril de 2020 | H79: 3500000 | I79: 3500000 | J79: GENARO GUTIERREZ DE PIÑERES | K79: JEFE ESTADISTICA | L79: 1675 | M79: 2596 | N79: =VLOOKUP(A79:A493,'[2]ABRIL 2020'!$B$3:$M$584,12,0) -> 2020-04-21 | O79: https://www.contratos.gov.co/consultas/detalleProceso.do?numConstancia=20-4-10691741
A80: 22446590 | B80: ROSALBA CERPA MIRANDA | C80: 1400 | D80: 1400-2020 | E80: AUXILIAR ADMINISTRATIVO - SUBGERENCIA CIENTIFICA | F80: 01 de Abril de 2020 | G80: 30 de Abril de 2020 | H80: 1900000 | I80: 1900000 | J80: BETTY PERTUZ | K80: SUBGERENCIA CIENTIFICA | L80: 1676 | M80: 2597 | N80: =VLOOKUP(A80:A494,'[2]ABRIL 2020'!$B$3:$M$584,12,0) -> 2020-04-21 | O80: https://www.contratos.gov.co/consultas/detalleProceso.do?numConstancia=20-4-10691742
A81: 72432594 | B81: RUBEN DARIO UCROS FABREGAS | C81: 1401 | D81: 1401-2020 | E81: AUXILIAR DE FACTURACION | F81: 01 de Abril de 2020 | G81: 30 de Abril de 2020 | H81: 2100000 | I81: 2100000 | J81: SANDRA SANMARTIN | K81: SUBGENTE ADMINISTRATIVO | L81: 1677 | M81: 2598 | N81: =VLOOKUP(A81:A495,'[2]ABRIL 2020'!$B$3:$M$584,12,0) -> 2020-04-21 | O81: https://www.contratos.gov.co/consultas/detalleProceso.do?numConstancia=20-4-10691743
A82: 1140881027 | B82: RUBEN DARIO GARZON GOMEZ | C82: 1402 | D82: 1402-2020 | E82: ABOGADO EXTERNO | F82: 01 de Abril de 2020 | G82: 30 de Abril de 2020 | H82: 5500000 | I82: 5500000 | J82: ORNELLA FIORENTINO | K82: JEFE DE JURIDICA | L82: 1678 | M82: 2599 | N82: =VLOOKUP(A82:A496,'[2]ABRIL 2020'!$B$3:$M$584,12,0) -> 2020-04-21 | O82: https://www.contratos.gov.co/consultas/detalleProceso.do?numConstancia=20-4-10691745
A83: 1140818354 | B83: SAEN DAVID TAJAN NIEBLES | C83: 1403 | D83: 1403-2020 | E83: AUXILIAR ADMINISTRATIVO - DE PROMOCION Y PREVENCION | F83: 01 de Abril de 2020 | G83: 30 de Abril de 2020 | H83: 2000000 | I83: 2000000 | J83: NILSA ARIZA MARQUEZ | K83: COORDINADOR PYP | L83: 1679 | M83: 2600 | N83: =VLOOKUP(A83:A497,'[2]ABRIL 2020'!$B$3:$M$584,12,0) -> 2020-04-21 | O83: https://www.contratos.gov.co/consultas/detalleProceso.do?numConstancia=20-4-10691747
A84: 27895505 | B84: SANDRA MILENA GARCIA PEÑA | C84: 1404 | D84: 1404-2020 | E84: APOYO GESTION DOCUMENTAL JURIDICA | F84: 01 de Abril de 2020 | G84: 30 de Abril de 2020 | H84: 1500000 | I84: 1500000 | J84: ORNELLA FIORENTINO | K84: JEFE DE JURIDICA | L84: 1680 | M84: 2601 | N84: =VLOOKUP(A84:A498,'[2]ABRIL 2020'!$B$3:$M$584,12,0) -> 2020-04-21 | O84: https://www.contratos.gov.co/consultas/detalleProceso.do?numConstancia=20-4-10691748
A85: 1045751778 | B85: SERGIO ANDRES INFANZON CASTRO | C85: 1405 | D85: 1405-2020 | E85: ASESOR | F85: 01 de Abril de 2020 | G85: 30 de Abril de 2020 | H85: 5800000 | I85: 5800000 | J85: ROSA MADERA | K85: GERENTE | L85: 1681 | M85: 2602 | N85: =VLOOKUP(A85:A499,'[2]ABRIL 2020'!$B$3:$M$584,12,0) -> 2020-04-21 | O85: https://www.contratos.gov.co/consultas/detalleProceso.do?numConstancia=20-4-10691749
A86: 1045691613 | B86: SERGIO ANDRES MANJARRES MAESTRE | C86: 1406 | D86: 1406-2020 | E86: PLANEACION | F86: 01 de Abril de 2020 | G86: 30 de Abril de 2020 | H86: 4000000 | I86: 4000000 | J86: SANDRA SANMARTIN | K86: SUBGENTE ADMINISTRATIVO | L86: 1682 | M86: 2603 | N86: =VLOOKUP(A86:A500,'[2]ABRIL 2020'!$B$3:$M$584,12,0) -> 2020-04-21 | O86: https://www.contratos.gov.co/consultas/detalleProceso.do?numConstancia=20-4-10691750
A87: 1043121395 | B87: SHEYLA DEL CARMEN ESTRADA ARIZA | C87: 1407 | D87: 1407-2020 | E87: TECNICO DE SISTEMAS | F87: 01 de Abril de 2020 | G87: 30 de Abril de 2020 | H87: 1270000 | I87: 1270000 | J87: ZULI ROMERO | K87: COORDINADORA TIC | L87: 1683 | M87: 2604 | N87: =VLOOKUP(A87:A501,'[2]ABRIL 2020'!$B$3:$M$584,12,0) -> 2020-04-21 | O87: https://www.contratos.gov.co/consultas/detalleProceso.do?numConstancia=20-4-10691753
A88: 32870174 | B88: SIRLEY PAOLA PEREZ CARMONA | C88: 1408 | D88: 1408-2020 | E88: CALIDAD | F88: 01 de Abril de 2020 | G88: 30 de Abril de 2020 | H88: 5800000 | I88: 5800000 | J88: BETTY PERTUZ | K88: SUBGERENCIA CIENTIFICA | L88: 1684 | M88: 2605 | N88: =VLOOKUP(A88:A502,'[2]ABRIL 2020'!$B$3:$M$584,12,0) -> 2020-04-21 | O88: https://www.contratos.gov.co/consultas/detalleProceso.do?numConstancia=20-4-10691755
A89: 1045667618 | B89: SONIA MARY BALLESTAS VERGARA | C89: 1409 | D89: 1409-2020 | E89: ABOGADA EXTERNA | F89: 01 de Abril de 2020 | G89: 30 de Abril de 2020 | H89: 4000000 | I89: 4000000 | J89: ORNELLA FIORENTINO | K89: JEFE JURIDICA | L89: 1685 | M89: 2606 | N89: =VLOOKUP(A89:A503,'[2]ABRIL 2020'!$B$3:$M$584,12,0) -> 2020-04-21 | O89: https://www.contratos.gov.co/consultas/detalleProceso.do?numConstancia=20-4-10691756
A90: 1140814033 | B90: STEFANY RINCON TORRES | C90: 1410 | D90: 1410-2020 | E90: ASISTENTE COORDINACION EMERGENCIA COVIC -19 | F90: 01 de Abril de 2020 | G90: 30 de Abril de 2020 | H90: 3600000 | I90: 3600000 | J90: SANDRA SANMARTIN | K90: SUBGENTE ADMINISTRATIVO | L90: 1686 | M90: 2607 | N90: =VLOOKUP(A90:A504,'[2]ABRIL 2020'!$B$3:$M$584,12,0) -> 2020-04-21 | O90: https://www.contratos.gov.co/consultas/detalleProceso.do?numConstancia=20-4-10692543
A91: 1129572439 | B91: SHIRLEY CONSUEGRA OLAYA | C91: 1411 | D91: 1506-2020 | E91: REFERENCIA Y CONTRAREFERENCIA | F91: 01 de Abril de 2020 | G91: 30 de Abril de 2020 | H91: 1524000 | I91: 1524000 | J91: SERGIO BOVEA MARIN | K91: COORD CENTRO DE SALUD | L91: 1782 | M91: 2703 | N91: =VLOOKUP(A91:A505,'[2]ABRIL 2020'!$B$3:$M$584,12,0) -> 
A92: 44151551 | B92: VANESSA NUÑEZ JIMENEZ | C92: 1412 | D92: 1412-2020 | E92: ASESOR GERENCIA | F92: 01 de Abril de 2020 | G92: 30 de Abril de 2020 | H92: 5000000 | I92: 5000000 | J92: ROSA MADERA | K92: GERENTE | L92: 1688 | M92: 2609 | N92: =VLOOKUP(A92:A506,'[2]ABRIL 2020'!$B$3:$M$584,12,0) -> 2020-04-21 | O92: https://www.contratos.gov.co/consultas/detalleProceso.do?numConstancia=20-4-10692580
A93: 72202548 | B93: WILBER CASTRO RIOS | C93: 1413 | D93: 1413-2020 | E93: MENSAJERO | F93: 01 de Abril de 2020 | G93: 30 de Abril de 2020 | H93: 2000000 | I93: 2000000 | J93: SANDRA SANMARTIN | K93: SUBGENTE ADMINISTRATIVO | L93: 1689 | M93: 2610 | N93: =VLOOKUP(A93:A507,'[2]ABRIL 2020'!$B$3:$M$584,12,0) -> 2020-04-21 | O93: https://www.contratos.gov.co/consultas/detalleProceso.do?numConstancia=20-4-10692600
A94: 1045717737 | B94: YAIR YEZID MELO VALENCIA | C94: 1414 | D94: 1414-2020 | E94: ASESOR DE PRESUPUESTO | F94: 01 de Abril de 2020 | G94: 30 de Abril de 2020 | H94: 4000000 | I94: 4000000 | J94: ALFONSO NICOLAS OQUENDO | K94: DIRECTOR FINANCIERO | L94: 1690 | M94: 2611 | N94: =VLOOKUP(A94:A508,'[2]ABRIL 2020'!$B$3:$M$584,12,0) -> 2020-04-21 | O94: https://www.contratos.gov.co/consultas/detalleProceso.do?numConstancia=20-4-10692616
A95: 77030162 | B95: YECITH FELIPE MARTINEZ QUINTERO | C95: 1415 | D95: 1415-2020 | E95: MENSAJERO | F95: 01 de Abril de 2020 | G95: 30 de Abril de 2020 | H95: 1800000 | I95: 1800000 | J95: SANDRA SANMARTIN | K95: SUBGENTE ADMINISTRATIVO | L95: 1691 | M95: 2612 | N95: =VLOOKUP(A95:A509,'[2]ABRIL 2020'!$B$3:$M$584,12,0) -> 2020-04-21 | O95: https://www.contratos.gov.co/consultas/detalleProceso.do?numConstancia=20-4-10692624
A96: 1045733253 | B96: YELICSE LORENA ALFONSO DE LOS SANTOS | C96: 1416 | D96: 1416-2020 | E96: AUXILIAR ADMINISTRATIVO -CONTRATACION | F96: 01 de Abril de 2020 | G96: 30 de Abril de 2020 | H96: 1500000 | I96: 1500000 | J96: ORNELLA FIORENTINO | K96: JEFE DE JURIDICA | L96: 1692 | M96: 2613 | N96: =VLOOKUP(A96:A510,'[2]ABRIL 2020'!$B$3:$M$584,12,0) -> 2020-04-21 | O96: https://www.contratos.gov.co/consultas/detalleProceso.do?numConstancia=20-4-10692638
A97: 1143132965 | B97: YERLIS PAOLA GAMARRA BORJA | C97: 1417 | D97: 1417-2020 | E97: AUXILIAR ADMINISTRATIVO | F97: 01 de Abril de 2020 | G97: 30 de Abril de 2020 | H97: 4000000 | I97: 4000000 | J97: ROSA MADERA | K97: GERENTE | L97: 1693 | M97: 2614 | N97: =VLOOKUP(A97:A511,'[2]ABRIL 2020'!$B$3:$M$584,12,0) -> 2020-04-21 | O97: https://www.contratos.gov.co/consultas/detalleProceso.do?numConstancia=20-4-10692647
A98: 57105527 | B98: ZOILA PATRICIA PABON HERNANDEZ | C98: 1418 | D98: 1418-2020 | E98: ASISTENTE COORDINACIÓN MÉDICA | F98: 01 de Abril de 2020 | G98: 30 de Abril de 2020 | H98: 3500000 | I98: 3500000 | J98: BETTY PERTUZ | K98: SUBGERENCIA CIENTIFICA | L98: 1694 | M98: 2615 | N98: =VLOOKUP(A98:A512,'[2]ABRIL 2020'!$B$3:$M$584,12,0) -> 2020-04-21 | O98: https://www.contratos.gov.co/consultas/detalleProceso.do?numConstancia=20-4-10692655
A99: 32825462 | B99: ANAIS DE JESUS RODRIGUEZ DE LAS AGUAS | C99: 1419 | D99: 1419-2020 | E99: AUXILIAR SERVICIOS GENERALES | F99: 01 de Abril de 2020 | G99: 30 de Abril de 2020 | H99: 1215000 | I99: 1215000 | J99: SANDRA SANMARTIN | K99: SUBGENTE ADMINISTRATIVO | L99: 1695 | M99: 2616 | N99: =VLOOKUP(A99:A513,'[2]ABRIL 2020'!$B$3:$M$584,12,0) -> 2020-04-21 | O99: https://www.contratos.gov.co/consultas/detalleProceso.do?numConstancia=20-4-10692670
A100: 22615419 | B100: ALCIRA ROCIO RIVERA DONADO | C100: 1420 | D100: 1420-2020 | E100: AUXILIAR DE ARCHIVO | F100: 01 de Abril de 2020 | G100: 30 de Abril de 2020 | H100: 1500000 | I100: 1500000 | J100: SANDRA SANMARTIN | K100: SUBGENTE ADMINISTRATIVO | L100: 1696 | M100: 2617 | N100: =VLOOKUP(A100:A514,'[2]ABRIL 2020'!$B$3:$M$584,12,0) -> 2020-04-21 | O100: https://www.contratos.gov.co/consultas/detalleProceso.do?numConstancia=20-4-10692688
A101: 8566775 | B101: ALEJANDRO LIBARDO ALEMAN MARQUEZ | C101: 1421 | D101: 1421-2020 | E101: AUXILIAR DE ARCHIVO | F101: 01 de Abril de 2020 | G101: 30 de Abril de 2020 | H101: 1500000 | I101: 1500000 | J101: SANDRA SANMARTIN | K101: SUBGENTE ADMINISTRATIVO | L101: 1697 | M101: 2618 | N101: =VLOOKUP(A101:A515,'[2]ABRIL 2020'!$B$3:$M$584,12,0) -> 2020-04-21 | O101: https://www.contratos.gov.co/consultas/detalleProceso.do?numConstancia=20-4-10692703
A102: 8714709 | B102: ALFONSO DOMINGUEZ MARENCO | C102: 1422 | D102: 1422-2020 | E102: AUXILIAR DE ARCHIVO | F102: 01 de Abril de 2020 | G102: 30 de Abril de 2020 | H102: 1500000 | I102: 1500000 | J102: SANDRA SANMARTIN | K102: SUBGENTE ADMINISTRATIVO | L102: 1698 | M102: 2619 | N102: =VLOOKUP(A102:A516,'[2]ABRIL 2020'!$B$3:$M$584,12,0) -> 2020-04-21 | O102: https://www.contratos.gov.co/consultas/detalleProceso.do?numConstancia=20-4-10692710
A103: 15666678 | B103: ALFREDO ANTONIO RAMIREZ PEREIRA | C103: 1423 | D103: 1423-2020 | E103: COORDINADOR DE ARCHIVO | F103: 01 de Abril de 2020 | G103: 30 de Abril de 2020 | H103: 3000000 | I103: 3000000 | J103: SANDRA SANMARTIN | K103: SUBGENTE ADMINISTRATIVO | L103: 1699 | M103: 2620 | N103: =VLOOKUP(A103:A517,'[2]ABRIL 2020'!$B$3:$M$584,12,0) -> 2020-04-21 | O103: https://www.contratos.gov.co/consultas/detalleProceso.do?numConstancia=20-4-10692723
A104: 32813366 | B104: ANA GONZALEZ ZAMBRANO | C104: 1424 | D104: 1424-2020 | E104: AUXILIAR DE ARCHIVO | F104: 01 de Abril de 2020 | G104: 30 de Abril de 2020 | H104: 1500000 | I104: 1500000 | J104: SANDRA SANMARTIN | K104: SUBGENTE ADMINISTRATIVO | L104: 1700 | M104: 2621 | N104: =VLOOKUP(A104:A518,'[2]ABRIL 2020'!$B$3:$M$584,12,0) -> 2020-04-21 | O104: https://www.contratos.gov.co/consultas/detalleProceso.do?numConstancia=20-4-10692744
A105: 32767778 | B105: BEATRIZ ELENA GUTIERREZ AHUMADA | C105: 1425 | D105: 1425-2020 | E105: DIGITADOR PAI WEB | F105: 01 de Abril de 2020 | G105: 30 de Abril de 2020 | H105: 1378000 | I105: 1378000 | J105: NILSA ARIZA MARQUEZ | K105: COORDINADOR PYP | L105: 1701 | M105: 2622 | N105: =VLOOKUP(A105:A519,'[2]ABRIL 2020'!$B$3:$M$584,12,0) -> 2020-04-21 | O105: https://www.contratos.gov.co/consultas/detalleProceso.do?numConstancia=20-4-10692751
A106: 45496113 | B106: BEATRIZ HELENA JIMENO CARDENAS | C106: 1426 | D106: 1426-2020 | E106: AUXILIAR DE ARCHIVO | F106: 01 de Abril de 2020 | G106: 30 de Abril de 2020 | H106: 1500000 | I106: 1500000 | J106: SANDRA SANMARTIN | K106: SUBGENTE ADMINISTRATIVO | L106: 1702 | M106: 2623 | N106: =VLOOKUP(A106:A520,'[2]ABRIL 2020'!$B$3:$M$584,12,0) -> 2020-04-21 | O106: https://www.contratos.gov.co/consultas/detalleProceso.do?numConstancia=20-4-10692761
A107: 33109830 | B107: CARMEN ELISA LEONES CASTRO | C107: 1427 | D107: 1427-2020 | E107: AUXILIAR DE ARCHIVO | F107: 01 de Abril de 2020 | G107: 30 de Abril de 2020 | H107: 1800000 | I107: 1800000 | J107: SANDRA SANMARTIN | K107: SUBGENTE ADMINISTRATIVO | L107: 1703 | M107: 2624 | N107: =VLOOKUP(A107:A521,'[2]ABRIL 2020'!$B$3:$M$584,12,0) -> 2020-04-21 | O107: https://www.contratos.gov.co/consultas/detalleProceso.do?numConstancia=20-4-10692780
A108: 1143439595 | B108: DAYANA PAOLA OTALORA AMAYA | C108: 1428 | D108: 1428-2020 | E108: DIGITADOR PAI WEB | F108: 01 de Abril de 2020 | G108: 30 de Abril de 2020 | H108: 1400000 | I108: 1400000 | J108: NILSA ARIZA MARQUEZ | K108: COORDINADOR PYP | L108: 1704 | M108: 2625 | N108: =VLOOKUP(A108:A522,'[2]ABRIL 2020'!$B$3:$M$584,12,0) -> 2020-04-21 | O108: https://www.contratos.gov.co/consultas/detalleProceso.do?numConstancia=20-4-10692786
A109: 1043142073 | B109: DORALIZ ECHEVERRI PEREZ | C109: 1429 | D109: 1429-2020 | E109: GESTION DOCUMENTAL | F109: 01 de Abril de 2020 | G109: 30 de Abril de 2020 | H109: 1500000 | I109: 1500000 | J109: FABIAN COLPAS | K109: JEFE TALENTO HUMANO | L109: 1705 | M109: 2626 | N109: =VLOOKUP(A109:A523,'[2]ABRIL 2020'!$B$3:$M$584,12,0) -> 2020-04-21 | O109: https://www.contratos.gov.co/consultas/detalleProceso.do?numConstancia=20-4-10692803
A110: 32772038 | B110: ELIANA BEATRIZ ABRIL DE LA ROSA | C110: 1430 | D110: 1430-2020 | E110: AUXILIAR ADMINISTRATIVO - RECURSOS HUMANOS | F110: 01 de Abril de 2020 | G110: 30 de Abril de 2020 | H110: 1900000 | I110: 1900000 | J110: FABIAN COLPAS | K110: JEFE TALENTO HUMANO | L110: 1706 | M110: 2627 | N110: =VLOOKUP(A110:A524,'[2]ABRIL 2020'!$B$3:$M$584,12,0) -> 2020-04-21 | O110: https://www.contratos.gov.co/consultas/detalleProceso.do?numConstancia=20-4-10692809
A111: 1007045398 | B111: ELIEZER VEGA ARAGON | C111: 1431 | D111: 1431-2020 | E111: AUXILIAR DE ARCHIVO | F111: 01 de Abril de 2020 | G111: 30 de Abril de 2020 | H111: 1500000 | I111: 1500000 | J111: SANDRA SANMARTIN | K111: SUBGENTE ADMINISTRATIVO | L111: 1707 | M111: 2628 | N111: =VLOOKUP(A111:A525,'[2]ABRIL 2020'!$B$3:$M$584,12,0) -> 2020-04-21 | O111: https://www.contratos.gov.co/consultas/detalleProceso.do?numConstancia=20-4-10692835
A112: 72170268 | B112: FABIAN FERNANDO MERCADO | C112: 1432 | D112: 1432-2020 | E112: DIGITADOR PAI WEB | F112: 01 de Abril de 2020 | G112: 30 de Abril de 2020 | H112: 1270000 | I112: 1270000 | J112: NILSA ARIZA MARQUEZ | K112: COORDINADOR PYP | L112: 1708 | M112: 2629 | N112: =VLOOKUP(A112:A526,'[2]ABRIL 2020'!$B$3:$M$584,12,0) -> 2020-04-21 | O112: https://www.contratos.gov.co/consultas/detalleProceso.do?numConstancia=20-4-10692877
A113: 8750355 | B113: FREDDY BARCELO DONADO | C113: 1433 | D113: 1433-2020 | E113: AUXILIAR DE ARCHIVO | F113: 01 de Abril de 2020 | G113: 30 de Abril de 2020 | H113: 1500000 | I113: 1500000 | J113: SANDRA SANMARTIN | K113: SUBGENTE ADMINISTRATIVO | L113: 1709 | M113: 2630 | N113: =VLOOKUP(A113:A527,'[2]ABRIL 2020'!$B$3:$M$584,12,0) -> 2020-04-21 | O113: https://www.contratos.gov.co/consultas/detalleProceso.do?numConstancia=20-4-10692907
A114: 8756266 | B114: GEOVANNY ESCORCIA JIMENEZ | C114: 1434 | D114: 1434-2020 | E114: AUXILIAR DE ARCHIVO | F114: 01 de Abril de 2020 | G114: 30 de Abril de 2020 | H114: 1500000 | I114: 1500000 | J114: SANDRA SANMARTIN | K114: SUBGENTE ADMINISTRATIVO | L114: 1710 | M114: 2631 | N114: =VLOOKUP(A114:A528,'[2]ABRIL 2020'!$B$3:$M$584,12,0) -> 2020-04-21 | O114: https://www.contratos.gov.co/consultas/detalleProceso.do?numConstancia=20-4-10692916
A115: 1042448309 | B115: GERALDINE ALEXANDRA MEDRANO IGLESIAS | C115: 1435 | D115: 1435-2020 | E115: AUXILIAR DE ARCHIVO | F115: 01 de Abril de 2020 | G115: 30 de Abril de 2020 | H115: 1500000 | I115: 1500000 | J115: SANDRA SANMARTIN | K115: SUBGENTE ADMINISTRATIVO | L115: 1711 | M115: 2632 | N115: =VLOOKUP(A115:A529,'[2]ABRIL 2020'!$B$3:$M$584,12,0) -> 2020-04-21 | O115: https://www.contratos.gov.co/consultas/detalleProceso.do?numConstancia=20-4-10694588
A116: 72227312 | B116: HUGO CHARRIS PEREZ | C116: 1436 | D116: 1436-2020 | E116: AUXILIAR DE ARCHIVO | F116: 01 de Abril de 2020 | G116: 30 de Abril de 2020 | H116: 1500000 | I116: 1500000 | J116: SANDRA SANMARTIN | K116: SUBGENTE ADMINISTRATIVO | L116: 1712 | M116: 2633 | N116: =VLOOKUP(A116:A530,'[2]ABRIL 2020'!$B$3:$M$584,12,0) -> 2020-04-21 | O116: https://www.contratos.gov.co/consultas/detalleProceso.do?numConstancia=20-4-10694635
A117: 1010123461 | B117: IVAN RAMIRO MORENO MENDOZA | C117: 1437 | D117: 1437-2020 | E117: DIGITADOR PAI WEB | F117: 01 de Abril de 2020 | G117: 30 de Abril de 2020 | H117: 1400000 | I117: 1400000 | J117: NILSA ARIZA MARQUEZ | K117: COORDINADOR PYP | L117: 1713 | M117: 2634 | N117: =VLOOKUP(A117:A531,'[2]ABRIL 2020'!$B$3:$M$584,12,0) -> 2020-04-21 | O117: https://www.contratos.gov.co/consultas/detalleProceso.do?numConstancia=20-4-10694637
A118: 73140179 | B118: JULIO CESAR LOPEZ ROMERO | C118: 1438 | D118: 1438-2020 | E118: DIGITADOR PAI WEB | F118: 01 de Abril de 2020 | G118: 30 de Abril de 2020 | H118: 2000000 | I118: 2000000 | J118: NILSA ARIZA MARQUEZ | K118: COORDINADOR PYP | L118: 1714 | M118: 2635 | N118: =VLOOKUP(A118:A532,'[2]ABRIL 2020'!$B$3:$M$584,12,0) -> 2020-04-21 | O118: https://www.contratos.gov.co/consultas/detalleProceso.do?numConstancia=20-4-10694643
A119: 22468261 | B119: KANYA MALLERLY BERNAL BECERRA | C119: 1439 | D119: 1439-2020 | E119: DIGITADOR PAI WEB | F119: 01 de Abril de 2020 | G119: 30 de Abril de 2020 | H119: 2200000 | I119: 2200000 | J119: NILSA ARIZA MARQUEZ | K119: COORDINADOR PYP | L119: 1715 | M119: 2636 | N119: =VLOOKUP(A119:A533,'[2]ABRIL 2020'!$B$3:$M$584,12,0) -> 2020-04-21 | O119: https://www.contratos.gov.co/consultas/detalleProceso.do?numConstancia=20-4-10694655
A120: 1042429330 | B120: KATHERINE BALZA SALAS | C120: 1440 | D120: 1440-2020 | E120: AUXILIAR DE ARCHIVO | F120: 01 de Abril de 2020 | G120: 30 de Abril de 2020 | H120: 1500000 | I120: 1500000 | J120: SANDRA SANMARTIN | K120: SUBGENTE ADMINISTRATIVO | L120: 1716 | M120: 2637 | N120: =VLOOKUP(A120:A534,'[2]ABRIL 2020'!$B$3:$M$584,12,0) -> 2020-04-21 | O120: https://www.contratos.gov.co/consultas/detalleProceso.do?numConstancia=20-4-10694665
A121: 72271914 | B121: LEONARDO DE JESUS ARIZA NIEBLES | C121: 1441 | D121: 1441-2020 | E121: AUXILIAR DE ARCHIVO | F121: 01 de Abril de 2020 | G121: 30 de Abril de 2020 | H121: 1800000 | I121: 1800000 | J121: SANDRA SANMARTIN | K121: SUBGENTE ADMINISTRATIVO | L121: 1717 | M121: 2638 | N121: =VLOOKUP(A121:A535,'[2]ABRIL 2020'!$B$3:$M$584,12,0) -> 2020-04-21 | O121: https://www.contratos.gov.co/consultas/detalleProceso.do?numConstancia=20-4-10694674
A122: 1042440221 | B122: MARIA DE LA HOZ DE LA HOZ | C122: 1442 | D122: 1442-2020 | E122: AUXILIAR DE ARCHIVO | F122: 01 de Abril de 2020 | G122: 30 de Abril de 2020 | H122: 1900000 | I122: 1900000 | J122: SANDRA SANMARTIN | K122: SUBGENTE ADMINISTRATIVO | L122: 1718 | M122: 2639 | N122: =VLOOKUP(A122:A536,'[2]ABRIL 2020'!$B$3:$M$584,12,0) -> 2020-04-21 | O122: https://www.contratos.gov.co/consultas/detalleProceso.do?numConstancia=20-4-10694678
A123: 8774531 | B123: MARIANO JOSE UCROS ROMERO | C123: 1443 | D123: 1443-2020 | E123: AUXILIAR DE ARCHIVO | F123: 01 de Abril de 2020 | G123: 30 de Abril de 2020 | H123: 1500000 | I123: 1500000 | J123: SANDRA SANMARTIN | K123: SUBGENTE ADMINISTRATIVO | L123: 1719 | M123: 2640 | N123: =VLOOKUP(A123:A537,'[2]ABRIL 2020'!$B$3:$M$584,12,0) -> 2020-04-21 | O123: https://www.contratos.gov.co/consultas/detalleProceso.do?numConstancia=20-4-10694740
A124: 32817343 | B124: MARIELA NIEBLES FREILE | C124: 1444 | D124: 1444-2020 | E124: AUXILIAR DE ARCHIVO | F124: 01 de Abril de 2020 | G124: 30 de Abril de 2020 | H124: 1800000 | I124: 1800000 | J124: SANDRA SANMARTIN | K124: SUBGENTE ADMINISTRATIVO | L124: 1720 | M124: 2641 | N124: =VLOOKUP(A124:A538,'[2]ABRIL 2020'!$B$3:$M$584,12,0) -> 2020-04-21 | O124: https://www.contratos.gov.co/consultas/detalleProceso.do?numConstancia=20-4-10694747
A125: 1001798861 | B125: MARTHA LAURA VIZCAINO PEREZ | C125: 1445 | D125: 1445-2020 | E125: DIGITADOR PAI WEB | F125: 01 de Abril de 2020 | G125: 30 de Abril de 2020 | H125: 1400000 | I125: 1400000 | J125: NILSA ARIZA MARQUEZ | K125: COORDINADOR PYP | L125: 1721 | M125: 2642 | N125: =VLOOKUP(A125:A539,'[2]ABRIL 2020'!$B$3:$M$584,12,0) -> 2020-04-21 | O125: https://www.contratos.gov.co/consultas/detalleProceso.do?numConstancia=20-4-10694763
A126: 1047337864 | B126: MARTHA MARÍA ARIZA FONTALVO | C126: 1446 | D126: 1446-2020 | E126: AUXILIAR DE ARCHIVO | F126: 01 de Abril de 2020 | G126: 30 de Abril de 2020 | H126: 1500000 | I126: 1500000 | J126: SANDRA SANMARTIN | K126: SUBGENTE ADMINISTRATIVO | L126: 1722 | M126: 2643 | N126: =VLOOKUP(A126:A540,'[2]ABRIL 2020'!$B$3:$M$584,12,0) -> 2020-04-21 | O126: https://www.contratos.gov.co/consultas/detalleProceso.do?numConstancia=20-4-10694766
A127: 1001878251 | B127: MAYRA ALEJANDRA ESCORCIA DE LA HOZ | C127: 1447 | D127: 1447-2020 | E127: AUXILIAR DE ARCHIVO | F127: 01 de Abril de 2020 | G127: 30 de Abril de 2020 | H127: 1500000 | I127: 1500000 | J127: SANDRA SANMARTIN | K127: SUBGENTE ADMINISTRATIVO | L127: 1723 | M127: 2644 | N127: =VLOOKUP(A127:A541,'[2]ABRIL 2020'!$B$3:$M$584,12,0) -> 2020-04-21 | O127: https://www.contratos.gov.co/consultas/detalleProceso.do?numConstancia=20-4-10694799
A128: 32862644 | B128: NURYS GARCIA DELGADO | C128: 1448 | D128: 1448-2020 | E128: AUXILIAR ARCHIVO | F128: 01 de Abril de 2020 | G128: 30 de Abril de 2020 | H128: 1500000 | I128: 1500000 | J128: SANDRA SANMARTIN | K128: SUBGENTE ADMINISTRATIVO | L128: 1724 | M128: 2645 | N128: =VLOOKUP(A128:A542,'[2]ABRIL 2020'!$B$3:$M$584,12,0) -> 2020-04-21 | O128: https://www.contratos.gov.co/consultas/detalleProceso.do?numConstancia=20-4-10694802
A129: 36594015 | B129: PAOLA PEREZ SIERRA | C129: 1449 | D129: 1449-2020 | E129: AUXILIAR DE ARCHIVO | F129: 01 de Abril de 2020 | G129: 30 de Abril de 2020 | H129: 1500000 | I129: 1500000 | J129: SANDRA SANMARTIN | K129: SUBGENTE ADMINISTRATIVO | L129: 1725 | M129: 2646 | N129: =VLOOKUP(A129:A543,'[2]ABRIL 2020'!$B$3:$M$584,12,0) -> 2020-04-21 | O129: https://www.contratos.gov.co/consultas/detalleProceso.do?numConstancia=20-4-10694808
A130: 32788911 | B130: PEGGY ESTHER CARRILLO MUÑOZ | C130: 1450 | D130: 1450-2020 | E130: DIGITADOR PAI WEB | F130: 01 de Abril de 2020 | G130: 30 de Abril de 2020 | H130: 1500000 | I130: 1500000 | J130: NILSA ARIZA MARQUEZ | K130: COORDINADOR PYP | L130: 1726 | M130: 2647 | N130: =VLOOKUP(A130:A544,'[2]ABRIL 2020'!$B$3:$M$584,12,0) -> 2020-04-21 | O130: https://www.contratos.gov.co/consultas/detalleProceso.do?numConstancia=20-4-10694811
A131: 1042439971 | B131: ROGER RAFAEL RAMBAO NIEBLES | C131: 1451 | D131: 1451-2020 | E131: DIGITADOR PAI WEB | F131: 01 de Abril de 2020 | G131: 30 de Abril de 2020 | H131: 1400000 | I131: 1400000 | J131: NILSA ARIZA MARQUEZ | K131: COORDINADOR PYP | L131: 1727 | M131: 2648 | N131: =VLOOKUP(A131:A545,'[2]ABRIL 2020'!$B$3:$M$584,12,0) -> 2020-04-21 | O131: https://www.contratos.gov.co/consultas/detalleProceso.do?numConstancia=20-4-10694814
A132: 1143447904 | B132: STEFFANY BRIGGITTE ALVAREZ LLERENA | C132: 1452 | D132: 1452-2020 | E132: DIGITADOR PAI WEB | F132: 01 de Abril de 2020 | G132: 30 de Abril de 2020 | H132: 1800000 | I132: 1800000 | J132: NILSA ARIZA MARQUEZ | K132: COORDINADOR PYP | L132: 1728 | M132: 2649 | N132: =VLOOKUP(A132:A546,'[2]ABRIL 2020'!$B$3:$M$584,12,0) -> 2020-04-21 | O132: https://www.contratos.gov.co/consultas/detalleProceso.do?numConstancia=20-4-10694817
A133: 55250327 | B133: YURANIS BONIFAS CAÑAS | C133: 1453 | D133: 1453-2020 | E133: COORDINADOR DE PAI WEB | F133: 01 de Abril de 2020 | G133: 30 de Abril de 2020 | H133: 3000000 | I133: 3000000 | J133: NILSA ARIZA MARQUEZ | K133: COORDINADOR PYP | L133: 1729 | M133: 2650 | N133: =VLOOKUP(A133:A547,'[2]ABRIL 2020'!$B$3:$M$584,12,0) -> 2020-04-21 | O133: https://www.contratos.gov.co/consultas/detalleProceso.do?numConstancia=20-4-10694823
A134: 55221348 | B134: MERCEDES SUSANA ESTARITA GUTIERREZ DE PIÑERES | C134: 1454 | D134: 1454-2020 | E134: AUXILIAR DE ARCHIVO | F134: 01 de Abril de 2020 | G134: 30 de Abril de 2020 | H134: 2000000 | I134: 2000000 | J134: SANDRA SANMARTIN | K134: SUBGENTE ADMINISTRATIVO | L134: 1730 | M134: 2651 | N134: =VLOOKUP(A134:A548,'[2]ABRIL 2020'!$B$3:$M$584,12,0) -> 2020-04-21 | O134: https://www.contratos.gov.co/consultas/detalleProceso.do?numConstancia=20-4-10694828
A135: 22562553 | B135: SILVANA BEATRIZ GONZALEZ MORENO | C135: 1455 | D135: 1455-2020 | E135: TECNICO ALMACEN | F135: 01 de Abril de 2020 | G135: 30 de Abril de 2020 | H135: 1900000 | I135: 1900000 | J135: MARIA SANCHEZ AYALA | K135: JEFE ALMACEN | L135: 1731 | M135: 2652 | N135: =VLOOKUP(A135:A549,'[2]ABRIL 2020'!$B$3:$M$584,12,0) -> 2020-04-21 | O135: https://www.contratos.gov.co/consultas/detalleProceso.do?numConstancia=20-4-10694877
A136: 8762665 | B136: ELIECER DE JESUS CALLE QUINTERO | C136: 1456 | D136: 1456-2020 | E136: TECNICO ALMACEN | F136: 01 de Abril de 2020 | G136: 30 de Abril de 2020 | H136: 1900000 | I136: 1900000 | J136: MARIA SANCHEZ AYALA | K136: JEFE DE ALMACEN | L136: 1732 | M136: 2653 | N136: =VLOOKUP(A136:A550,'[2]ABRIL 2020'!$B$3:$M$584,12,0) -> 2020-04-21 | O136: https://www.contratos.gov.co/consultas/detalleProceso.do?numConstancia=20-4-10694887
A137: 32826802 | B137: ROCIO ISABEL FRIAS COLPAS | C137: 1457 | D137: 1457-2020 | E137: AUXILIAR SERVICIOS GENERALES | F137: 01 de Abril de 2020 | G137: 30 de Abril de 2020 | H137: 1215000 | I137: 1215000 | J137: MARIA SANCHEZ AYALA | K137: JEFE DE LAMACEN | L137: 1733 | M137: 2654 | N137: =VLOOKUP(A137:A551,'[2]ABRIL 2020'!$B$3:$M$584,12,0) -> 2020-04-21 | O137: https://www.contratos.gov.co/consultas/detalleProceso.do?numConstancia=20-4-10694892
A138: 72238499 | B138: CARLOS ANTONIO MATTOS MIRANDA | C138: 1458 | D138: 1458-2020 | E138: REFERENCIA Y CONTRAREFERENCIA | F138: 01 de Abril de 2020 | G138: 30 de Abril de 2020 | H138: 1776000 | I138: 1776000 | J138: SERGIO BOVEA MARIN | K138: COORD CENTRO DE SALUD | L138: 1734 | M138: 2655 | N138: =VLOOKUP(A138:A552,'[2]ABRIL 2020'!$B$3:$M$584,12,0) -> 2020-04-21 | O138: https://www.contratos.gov.co/consultas/detalleProceso.do?numConstancia=20-4-10694899
A139: 55309225 | B139: ADRIANA BALLESTAS MARTINEZ | C139: 1459 | D139: 1459-2020 | E139: MEDICO DE URGENCIA | F139: 01 de Abril de 2020 | G139: 30 de Abril de 2020 | H139: 3072000 | I139: 3072000 | J139: SERGIO BOVEA MARIN | K139: COORD CENTRO DE SALUD | L139: 1735 | M139: 2656 | N139: =VLOOKUP(A139:A553,'[2]ABRIL 2020'!$B$3:$M$584,12,0) -> 2020-04-21 | O139: https://www.contratos.gov.co/consultas/detalleProceso.do?numConstancia=20-4-10694901
A140: 1042428171 | B140: ALEX ENRIQUE VILLARREAL IBAÑEZ | C140: =+C139+1 -> 1460 | D140: 1460-2020 | E140: ODONTOLOGO | F140: 01 de Abril de 2020 | G140: 30 de Abril de 2020 | H140: 1900000 | I140: =+H140*1 -> 1900000 | J140: SERGIO BOVEA MARIN | K140: COORD CENTRO DE SALUD | L140: 1736 | M140: 2657 | N140: =VLOOKUP(A140:A554,'[2]ABRIL 2020'!$B$3:$M$584,12,0) -> 2020-04-21 | O140: https://www.contratos.gov.co/consultas/detalleProceso.do?numConstancia=20-4-10694905
A141: 22523223 | B141: ALEXANDRA ESTHER MOLINA PEREZ | C141: 1461 | D141: 1461-2020 | E141: AUXILIAR SERVICIOS GENERALES URGENCIA | F141: 01 de Abril de 2020 | G141: 30 de Abril de 2020 | H141: 1653600 | I141: 1653600 | J141: SERGIO BOVEA MARIN | K141: COORD CENTRO DE SALUD | L141: 1737 | M141: 2658 | N141: =VLOOKUP(A141:A555,'[2]ABRIL 2020'!$B$3:$M$584,12,0) -> 2020-04-21 | O141: https://www.contratos.gov.co/consultas/detalleProceso.do?numConstancia=20-4-10694912
A142: 72000601 | B142: ALEXIS JAVIER SUAREZ CABALLERO | C142: 1462 | D142: 1462-2020 | E142: AUXILIAR DE FACTURACION URGENCIA | F142: 01 de Abril de 2020 | G142: 30 de Abril de 2020 | H142: 1680000 | I142: 1680000 | J142: SANDRA SANMARTIN | K142: SUBGENTE ADMINISTRATIVO | L142: 1738 | M142: 2659 | N142: =VLOOKUP(A142:A556,'[2]ABRIL 2020'!$B$3:$M$584,12,0) -> 2020-04-21 | O142: https://www.contratos.gov.co/consultas/detalleProceso.do?numConstancia=20-4-10694918
A143: 8697543 | B143: ALVARO ARENAS GONZALEZ | C143: 1463 | D143: 1463-2020 | E143: MEDICO DE MATERNIDAD | F143: 01 de Abril de 2020 | G143: 30 de Abril de 2020 | H143: 5088000 | I143: 5088000 | J143: SERGIO BOVEA MARIN | K143: COORD CENTRO DE SALUD | L143: 1739 | M143: 2660 | N143: =VLOOKUP(A143:A557,'[2]ABRIL 2020'!$B$3:$M$584,12,0) -> 2020-04-21 | O143: https://www.contratos.gov.co/consultas/detalleProceso.do?numConstancia=20-4-10694921
A144: 8501206 | B144: AUGUSTO RAFAEL VALENCIA OCAMPO | C144: 1464 | D144: 1464-2020 | E144: AUXILIAR DE FACTURACIÓN URGENCIA | F144: 01 de Abril de 2020 | G144: 30 de Abril de 2020 | H144: 1780000 | I144: 1780000 | J144: SERGIO BOVEA MARIN | K144: COORD CENTRO DE SALUD | L144: 1740 | M144: 2661 | N144: =VLOOKUP(A144:A558,'[2]ABRIL 2020'!$B$3:$M$584,12,0) -> 2020-04-21 | O144: https://www.contratos.gov.co/consultas/detalleProceso.do?numConstancia=20-4-10694943
A145: 1140872217 | B145: BLEYDIS LORAINE PELAEZ LOBO | C145: 1465 | D145: 1465-2020 | E145: MEDICO DE URGENCIA | F145: 01 de Abril de 2020 | G145: 30 de Abril de 2020 | H145: 3072000 | I145: 3072000 | J145: SERGIO BOVEA MARIN | K145: COORD CENTRO DE SALUD | L145: 1741 | M145: 2662 | N145: =VLOOKUP(A145:A559,'[2]ABRIL 2020'!$B$3:$M$584,12,0) -> 2020-04-21 | O145: https://www.contratos.gov.co/consultas/detalleProceso.do?numConstancia=20-4-10694955
A146: 44158949 | B146: CARMEN PACHECO VARELA | C146: 1466 | D146: 1466-2020 | E146: AUXILIAR SERVICIOS GENERALES URGENCIA | F146: 01 de Abril de 2020 | G146: 30 de Abril de 2020 | H146: 1653600 | I146: 1653600 | J146: SERGIO BOVEA MARIN | K146: COORD CENTRO DE SALUD | L146: 1742 | M146: 2663 | N146: =VLOOKUP(A146:A560,'[2]ABRIL 2020'!$B$3:$M$584,12,0) -> 2020-04-21 | O146: https://www.contratos.gov.co/consultas/detalleProceso.do?numConstancia=20-4-10694962
A147: 32712485 | B147: CASILDA LARA SOLANO | C147: 1467 | D147: 1467-2020 | E147: MEDICO MATERNIDAD SEGURA | F147: 01 de Abril de 2020 | G147: 30 de Abril de 2020 | H147: 2120000 | I147: 2120000 | J147: SERGIO BOVEA MARIN | K147: COORD CENTRO DE SALUD | L147: 1743 | M147: 2664 | N147: =VLOOKUP(A147:A561,'[2]ABRIL 2020'!$B$3:$M$584,12,0) -> 2020-04-21 | O147: https://www.contratos.gov.co/consultas/detalleProceso.do?numConstancia=20-4-10694969
A148: 1042442558 | B148: DANISA PAOLA BARRIOS DE ALBA | C148: 1468 | D148: 1468-2020 | E148: NUTRICIONISTA | F148: 01 de Abril de 2020 | G148: 30 de Abril de 2020 | H148: 2760000 | I148: 2760000 | J148: SERGIO BOVEA MARIN | K148: COORD CENTRO DE SALUD | L148: 1744 | M148: 2665 | N148: =VLOOKUP(A148:A562,'[2]ABRIL 2020'!$B$3:$M$584,12,0) -> 2020-04-21 | O148: https://www.contratos.gov.co/consultas/detalleProceso.do?numConstancia=20-4-10694975
A149: 1082405551 | B149: DESIRETH ESTRADA FERNANDEZ | C149: 1469 | D149: 1469-2020 | E149: ENFERMERA JEFE P Y P | F149: 01 de Abril de 2020 | G149: 30 de Abril de 2020 | H149: 2300000 | I149: 2300000 | J149: NILSA ARIZA MARQUEZ | K149: COORDINADOR PYP | L149: 1745 | M149: 2666 | N149: =VLOOKUP(A149:A563,'[2]ABRIL 2020'!$B$3:$M$584,12,0) -> 2020-04-21 | O149: https://www.contratos.gov.co/consultas/detalleProceso.do?numConstancia=20-4-10694981
A150: 32818082 | B150: DIVINA LUZ NIETO ZAMBRANO | C150: 1470 | D150: 1470-2020 | E150: AUXILIAR SERVICIOS GENERALES URGENCIA | F150: 01 de Abril de 2020 | G150: 30 de Abril de 2020 | H150: 1653600 | I150: 1653600 | J150: SERGIO BOVEA MARIN | K150: COORD CENTRO DE SALUD | L150: 1746 | M150: 2667 | N150: =VLOOKUP(A150:A564,'[2]ABRIL 2020'!$B$3:$M$584,12,0) -> 2020-04-21 | O150: https://www.contratos.gov.co/consultas/detalleProceso.do?numConstancia=20-4-10694985
A151: 32741368 | B151: DOLLYS YERAYS GOMEZ RODRIGUEZ | C151: 1471 | D151: 1471-2020 | E151: ASISTENTE ADMINISTRATIVO- COORD MEDICA | F151: 01 de Abril de 2020 | G151: 30 de Abril de 2020 | H151: 1900000 | I151: 1900000 | J151: SERGIO BOVEA MARIN | K151: COORD CENTRO DE SALUD | L151: 1747 | M151: 2668 | N151: =VLOOKUP(A151:A565,'[2]ABRIL 2020'!$B$3:$M$584,12,0) -> 2020-04-21 | O151: https://www.contratos.gov.co/consultas/detalleProceso.do?numConstancia=20-4-10694993
A152: 8734956 | B152: EFRAIN CANTILLO GUERRERO | C152: 1472 | D152: 1472-2020 | E152: CONDUCTOR DE AMBULANCIA | F152: 01 de Abril de 2020 | G152: 30 de Abril de 2020 | H152: 2160000 | I152: 2160000 | J152: BETTY PERTUZ | K152: SUBGERENCIA CIENTIFICA | L152: 1748 | M152: 2669 | N152: =VLOOKUP(A152:A566,'[2]ABRIL 2020'!$B$3:$M$584,12,0) -> 2020-04-21 | O152: https://www.contratos.gov.co/consultas/detalleProceso.do?numConstancia=20-4-10694991
A153: 8750161 | B153: EFRAIN DE LA HOZ ROCHEL | C153: 1473 | D153: 1473-2020 | E153: MEDICO DE URGENCIA | F153: 01 de Abril de 2020 | G153: 30 de Abril de 2020 | H153: 3072000 | I153: 3072000 | J153: SERGIO BOVEA MARIN | K153: COORD CENTRO DE SALUD | L153: 1749 | M153: 2670 | N153: =VLOOKUP(A153:A567,'[2]ABRIL 2020'!$B$3:$M$584,12,0) -> 2020-04-21 | O153: https://www.contratos.gov.co/consultas/detalleProceso.do?numConstancia=20-4-10694998
A154: 1042436156 | B154: EMELY ESCORCIA MARTINEZ | C154: 1474 | D154: 1474-2020 | E154: ENFERMERA JEFE URGENCIAS | F154: 01 de Abril de 2020 | G154: 30 de Abril de 2020 | H154: 2280000 | I154: 2280000 | J154: SERGIO BOVEA MARIN | K154: COORD CENTRO DE SALUD | L154: 1750 | M154: 2671 | N154: =VLOOKUP(A154:A568,'[2]ABRIL 2020'!$B$3:$M$584,12,0) -> 2020-04-21 | O154: https://www.contratos.gov.co/consultas/detalleProceso.do?numConstancia=20-4-10695006
A155: 22693401 | B155: EMILIA ANTONIA BARCELO DE PARRA | C155: 1475 | D155: 1475-2020 | E155: AUXILIAR SERVICIOS GENERALES URGENCIA | F155: 01 de Abril de 2020 | G155: 30 de Abril de 2020 | H155: 1653600 | I155: 1653600 | J155: SERGIO BOVEA MARIN | K155: COORD CENTRO DE SALUD | L155: 1751 | M155: 2672 | N155: =VLOOKUP(A155:A569,'[2]ABRIL 2020'!$B$3:$M$584,12,0) -> 2020-04-21 | O155: https://www.contratos.gov.co/consultas/detalleProceso.do?numConstancia=20-4-10695015
A156: 8718276 | B156: ENRIQUE PACHECO PACHECO | C156: 1476 | D156: 1476-2020 | E156: MEDICO DE URGENCIA | F156: 01 de Abril de 2020 | G156: 30 de Abril de 2020 | H156: 3072000 | I156: 3072000 | J156: SERGIO BOVEA MARIN | K156: COORD CENTRO DE SALUD | L156: 1752 | M156: 2673 | N156: =VLOOKUP(A156:A570,'[2]ABRIL 2020'!$B$3:$M$584,12,0) -> 2020-04-21 | O156: https://www.contratos.gov.co/consultas/detalleProceso.do?numConstancia=20-4-10695017
A157: 32821813 | B157: ESPERANZA OROZCO MORENO | C157: 1477 | D157: 1477-2020 | E157: AUXILIAR DE ENFERMERIA URGENCIAS | F157: 01 de Abril de 2020 | G157: 30 de Abril de 2020 | H157: 1653600 | I157: 1653600 | J157: SERGIO BOVEA MARIN | K157: COORD CENTRO DE SALUD | L157: 1753 | M157: 2674 | N157: =VLOOKUP(A157:A571,'[2]ABRIL 2020'!$B$3:$M$584,12,0) -> 2020-04-21 | O157: https://www.contratos.gov.co/consultas/detalleProceso.do?numConstancia=20-4-10695029
A158: 1042448518 | B158: GIANINA ANDREA GRAVINI DE LA HOZ | C158: 1478 | D158: 1478-2020 | E158: MEDICO DE URGENCIA | F158: 01 de Abril de 2020 | G158: 30 de Abril de 2020 | H158: 3072000 | I158: 3072000 | J158: SERGIO BOVEA MARIN | K158: COORD CENTRO DE SALUD | L158: 1754 | M158: 2675 | N158: =VLOOKUP(A158:A572,'[2]ABRIL 2020'!$B$3:$M$584,12,0) -> 2020-04-21 | O158: https://www.contratos.gov.co/consultas/detalleProceso.do?numConstancia=20-4-10695035
A159: 49555306 | B159: GLADYS DIAZ MARIN | C159: 1479 | D159: 1479-2020 | E159: AUXILIAR DE FACTURACION URGENCIA | F159: 01 de Abril de 2020 | G159: 30 de Abril de 2020 | H159: 1680000 | I159: 1680000 | J159: SANDRA SANMARTIN | K159: SUBGENTE ADMINISTRATIVO | L159: 1755 | M159: 2676 | N159: =VLOOKUP(A159:A573,'[2]ABRIL 2020'!$B$3:$M$584,12,0) -> 2020-04-21 | O159: https://www.contratos.gov.co/consultas/detalleProceso.do?numConstancia=20-4-10695038
A160: 1042440903 | B160: HEIDY MARTINEZ GUTIERREZ | C160: 1480 | D160: 1480-2020 | E160: AUXILIAR DE FACTURACION URGENCIA | F160: 01 de Abril de 2020 | G160: 30 de Abril de 2020 | H160: 1680000 | I160: 1680000 | J160: SANDRA SANMARTIN | K160: SUBGENTE ADMINISTRATIVO | L160: 1756 | M160: 2677 | N160: =VLOOKUP(A160:A574,'[2]ABRIL 2020'!$B$3:$M$584,12,0) -> 2020-04-21 | O160: https://www.contratos.gov.co/consultas/detalleProceso.do?numConstancia=20-4-10695051
A161: 32861543 | B161: INGRID NAVARRO CARRILLO | C161: 1481 | D161: 1481-2020 | E161: FISIOTERAPEUTA | F161: 01 de Abril de 2020 | G161: 30 de Abril de 2020 | H161: 6960000 | I161: 6960000 | J161: SERGIO BOVEA MARIN | K161: COORD CENTRO DE SALUD | L161: 1757 | M161: 2678 | N161: =VLOOKUP(A161:A575,'[2]ABRIL 2020'!$B$3:$M$584,12,0) -> 2020-04-21 | O161: https://www.contratos.gov.co/consultas/detalleProceso.do?numConstancia=20-4-10695058
A162: 32822389 | B162: ISABEL AMÉRICA DE ALBA RODRIGUEZ | C162: 1482 | D162: 1482-2020 | E162: AUXILIAR DE FACTURACION -CONSULTA EXTERNA | F162: 01 de Abril de 2020 | G162: 30 de Abril de 2020 | H162: 1400000 | I162: 1400000 | J162: SANDRA SANMARTIN | K162: SUBGENTE ADMINISTRATIVO | L162: 1758 | M162: 2679 | N162: =VLOOKUP(A162:A576,'[2]ABRIL 2020'!$B$3:$M$584,12,0) -> 2020-04-21 | O162: https://www.contratos.gov.co/consultas/detalleProceso.do?numConstancia=20-4-10695061
A163: 72429926 | B163: JAIRO ESCOBAR ROMERO | C163: 1483 | D163: 1483-2020 | E163: MEDICO DE URGENCIA | F163: 01 de Abril de 2020 | G163: 30 de Abril de 2020 | H163: 3072000 | I163: 3072000 | J163: SERGIO BOVEA MARIN | K163: COORD CENTRO DE SALUD | L163: 1759 | M163: 2680 | N163: =VLOOKUP(A163:A577,'[2]ABRIL 2020'!$B$3:$M$584,12,0) -> 2020-04-21 | O163: https://www.contratos.gov.co/consultas/detalleProceso.do?numConstancia=20-4-10695069
A164: 32869709 | B164: JENECIS BARRERA MIRANDA | C164: 1484 | D164: 1484-2020 | E164: ENFERMERA MATERNIDAD SEGURA | F164: 01 de Abril de 2020 | G164: 30 de Abril de 2020 | H164: 2760000 | I164: 2760000 | J164: NILSA ARIZA MARQUEZ | K164: COORDINADOR PYP | L164: 1760 | M164: 2681 | N164: =VLOOKUP(A164:A578,'[2]ABRIL 2020'!$B$3:$M$584,12,0) -> 2020-04-21 | O164: https://www.contratos.gov.co/consultas/detalleProceso.do?numConstancia=20-4-10695076
A165: 1042444925 | B165: JESUS MORENO DE ALBA | C165: 1485 | D165: 1485-2020 | E165: AUXILIAR DE FACTURACION URGENCIA | F165: 01 de Abril de 2020 | G165: 30 de Abril de 2020 | H165: 1680000 | I165: 1680000 | J165: SANDRA SANMARTIN | K165: SUBGENTE ADMINISTRATIVO | L165: 1761 | M165: 2682 | N165: =VLOOKUP(A165:A579,'[2]ABRIL 2020'!$B$3:$M$584,12,0) -> 2020-04-21 | O165: https://www.contratos.gov.co/consultas/detalleProceso.do?numConstancia=20-4-10695081
A166: 44161544 | B166: JHOANA CATALINA SANDOVAL ESCORCIA | C166: 1486 | D166: 1486-2020 | E166: ENFERMERA JEFE URGENCIAS | F166: 01 de Abril de 2020 | G166: 30 de Abril de 2020 | H166: 2280000 | I166: 2280000 | J166: SERGIO BOVEA MARIN | K166: COORD CENTRO DE SALUD | L166: 1762 | M166: 2683 | N166: =VLOOKUP(A166:A580,'[2]ABRIL 2020'!$B$3:$M$584,12,0) -> 2020-04-21 | O166: https://www.contratos.gov.co/consultas/detalleProceso.do?numConstancia=20-4-10695086
A167: 32810582 | B167: JOSEFINA CARO VITOLA | C167: 1487 | D167: 1487-2020 | E167: AUXILIAR DE ENFERMERIA URGENCIAS | F167: 01 de Abril de 2020 | G167: 30 de Abril de 2020 | H167: 1653600 | I167: 1653600 | J167: SERGIO BOVEA MARIN | K167: COORD CENTRO DE SALUD | L167: 1763 | M167: 2684 | N167: =VLOOKUP(A167:A581,'[2]ABRIL 2020'!$B$3:$M$584,12,0) -> 2020-04-21 | O167: https://www.contratos.gov.co/consultas/detalleProceso.do?numConstancia=20-4-10695097
A168: 32771594 | B168: JUANA DIAZ CARABALLO | C168: 1488 | D168: 1488-2020 | E168: AUXILIAR DE ENFERMERIA URGENCIAS | F168: 01 de Abril de 2020 | G168: 30 de Abril de 2020 | H168: 1653600 | I168: 1653600 | J168: SERGIO BOVEA MARIN | K168: COORD CENTRO DE SALUD | L168: 1764 | M168: 2685 | N168: =VLOOKUP(A168:A582,'[2]ABRIL 2020'!$B$3:$M$584,12,0) -> 2020-04-21 | O168: https://www.contratos.gov.co/consultas/detalleProceso.do?numConstancia=20-4-10695103
A169: 1043841968 | B169: KAREN DAYANA FONSECA MUÑOZ | C169: 1489 | D169: 1489-2020 | E169: MEDICO DE URGENCIA | F169: 01 de Abril de 2020 | G169: 30 de Abril de 2020 | H169: 3072000 | I169: 3072000 | J169: SERGIO BOVEA MARIN | K169: COORD CENTRO DE SALUD | L169: 1765 | M169: 2686 | N169: =VLOOKUP(A169:A583,'[2]ABRIL 2020'!$B$3:$M$584,12,0) -> 2020-04-21 | O169: https://www.contratos.gov.co/consultas/detalleProceso.do?numConstancia=20-4-10695107
A170: 55313269 | B170: KAREN MARTINEZ BRANGO | C170: 1490 | D170: 1490-2020 | E170: AUXILIAR DE ENFERMERIA URGENCIAS | F170: 01 de Abril de 2020 | G170: 30 de Abril de 2020 | H170: 1653600 | I170: 1653600 | J170: SERGIO BOVEA MARIN | K170: COORD CENTRO DE SALUD | L170: 1766 | M170: 2687 | N170: =VLOOKUP(A170:A584,'[2]ABRIL 2020'!$B$3:$M$584,12,0) -> 2020-04-21 | O170: https://www.contratos.gov.co/consultas/detalleProceso.do?numConstancia=20-4-10695112
A171: 22534402 | B171: KATERINE RUA SUAREZ | C171: 1491 | D171: 1491-2020 | E171: AUXILIAR DE FACTURACION URGENCIA | F171: 01 de Abril de 2020 | G171: 30 de Abril de 2020 | H171: 1680000 | I171: 1680000 | J171: SANDRA SANMARTIN | K171: SUBGENTE ADMINISTRATIVO | L171: 1767 | M171: 2688 | N171: =VLOOKUP(A171:A585,'[2]ABRIL 2020'!$B$3:$M$584,12,0) -> 2020-04-21 | O171: https://www.contratos.gov.co/consultas/detalleProceso.do?numConstancia=20-4-10695114
A172: 55301340 | B172: KATYA LILIANA NORIEGA BARRIOS | C172: 1492 | D172: 1492-2020 | E172: AUXILIAR DE ENFERMERIA URGENCIAS | F172: 01 de Abril de 2020 | G172: 30 de Abril de 2020 | H172: 1653600 | I172: 1653600 | J172: SERGIO BOVEA MARIN | K172: COORD CENTRO DE SALUD | L172: 1768 | M172: 2689 | N172: =VLOOKUP(A172:A586,'[2]ABRIL 2020'!$B$3:$M$584,12,0) -> 2020-04-21 | O172: https://www.contratos.gov.co/consultas/detalleProceso.do?numConstancia=20-4-10695119
A173: 1045697885 | B173: LAURA ALANDETE CASTRO | C173: 1493 | D173: 1493-2020 | E173: MEDICO DE URGENCIA | F173: 01 de Abril de 2020 | G173: 30 de Abril de 2020 | H173: 3072000 | I173: 3072000 | J173: SERGIO BOVEA MARIN | K173: COORD CENTRO DE SALUD | L173: 1769 | M173: 2690 | N173: =VLOOKUP(A173:A587,'[2]ABRIL 2020'!$B$3:$M$584,12,0) -> 2020-04-21 | O173: https://www.contratos.gov.co/consultas/detalleProceso.do?numConstancia=20-4-10695126
A174: 1045712889 | B174: LEYDILLY ROJANO GOMEZ | C174: 1494 | D174: 1494-2020 | E174: ENFERMERA JEFE URGENCIAS | F174: 01 de Abril de 2020 | G174: 30 de Abril de 2020 | H174: 2280000 | I174: 2280000 | J174: SERGIO BOVEA MARIN | K174: COORD CENTRO DE SALUD | L174: 1770 | M174: 2691 | N174: =VLOOKUP(A174:A588,'[2]ABRIL 2020'!$B$3:$M$584,12,0) -> 2020-04-21 | O174: https://www.contratos.gov.co/consultas/detalleProceso.do?numConstancia=20-4-10695131
A175: 22533893 | B175: LILIANA VARGAS MONTERO | C175: 1495 | D175: 1495-2020 | E175: ENFERMERA JEFE P Y P | F175: 01 de Abril de 2020 | G175: 30 de Abril de 2020 | H175: 2300000 | I175: 2300000 | J175: NILSA ARIZA MARQUEZ | K175: COORDINADOR PYP | L175: 1771 | M175: 2692 | N175: =VLOOKUP(A175:A589,'[2]ABRIL 2020'!$B$3:$M$584,12,0) -> 2020-04-21 | O175: https://www.contratos.gov.co/consultas/detalleProceso.do?numConstancia=20-4-10695134
A176: 1042426533 | B176: LIZ CATERINE ARROYO ROMERO | C176: 1496 | D176: 1496-2020 | E176: AUXILIAR DE FARMACIA | F176: 01 de Abril de 2020 | G176: 30 de Abril de 2020 | H176: 1524000 | I176: 1524000 | J176: BETTY PERTUZ | K176: SUBGERENCIA CIENTIFICA | L176: 1772 | M176: 2693 | N176: =VLOOKUP(A176:A590,'[2]ABRIL 2020'!$B$3:$M$584,12,0) -> 2020-04-21 | O176: https://www.contratos.gov.co/consultas/detalleProceso.do?numConstancia=20-4-10695139
A177: 32716780 | B177: LORAINE PASION ARDILA | C177: 1497 | D177: 1497-2020 | E177: TRABAJADORA SOCIAL | F177: 01 de Abril de 2020 | G177: 30 de Abril de 2020 | H177: 2760000 | I177: 2760000 | J177: SERGIO BOVEA MARIN | K177: COORD CENTRO DE SALUD | L177: 1773 | M177: 2694 | N177: =VLOOKUP(A177:A591,'[2]ABRIL 2020'!$B$3:$M$584,12,0) -> 2020-04-21 | O177: https://www.contratos.gov.co/consultas/detalleProceso.do?numConstancia=20-4-10695141
A178: 8672260 | B178: LUIS MIGUEL REYES LANCE | C178: 1498 | D178: 1498-2020 | E178: ORIENTADOR | F178: 01 de Abril de 2020 | G178: 30 de Abril de 2020 | H178: 1524000 | I178: 1524000 | J178: SERGIO BOVEA MARIN | K178: COORD CENTRO DE SALUD | L178: 1774 | M178: 2695 | N178: =VLOOKUP(A178:A592,'[2]ABRIL 2020'!$B$3:$M$584,12,0) -> 2020-04-21 | O178: https://www.contratos.gov.co/consultas/detalleProceso.do?numConstancia=20-4-10695145
A179: 32825666 | B179: LUZ STELLA RUIZ SUAREZ | C179: 1499 | D179: 1499-2020 | E179: AUXILIAR DE ENFERMERIA MATERNIDAD SEGURA | F179: 01 de Abril de 2020 | G179: 30 de Abril de 2020 | H179: 1399200 | I179: 1399200 | J179: SERGIO BOVEA MARIN | K179: COORD CENTRO DE SALUD | L179: 1775 | M179: 2696 | N179: =VLOOKUP(A179:A593,'[2]ABRIL 2020'!$B$3:$M$584,12,0) -> 2020-04-21 | O179: https://www.contratos.gov.co/consultas/detalleProceso.do?numConstancia=20-4-10695154
A180: 32697306 | B180: MAGALY POLO ARNEDO | C180: 1500 | D180: 1500-2020 | E180: ODONTOLOGO | F180: 01 de Abril de 2020 | G180: 30 de Abril de 2020 | H180: 1900000 | I180: 1900000 | J180: SERGIO BOVEA MARIN | K180: COORD CENTRO DE SALUD | L180: 1776 | M180: 2697 | N180: =VLOOKUP(A180:A594,'[2]ABRIL 2020'!$B$3:$M$584,12,0) -> 2020-04-21 | O180: https://www.contratos.gov.co/consultas/detalleProceso.do?numConstancia=20-4-10695160
A181: 1140849940 | B181: MAICOL JOSE MOLINA SOTO | C181: 1501 | D181: 1501-2020 | E181: MEDICO DE URGENCIA | F181: 01 de Abril de 2020 | G181: 30 de Abril de 2020 | H181: 3072000 | I181: 3072000 | J181: SERGIO BOVEA MARIN | K181: COORD CENTRO DE SALUD | L181: 1777 | M181: 2698 | N181: =VLOOKUP(A181:A595,'[2]ABRIL 2020'!$B$3:$M$584,12,0) -> 2020-04-21 | O181: https://www.contratos.gov.co/consultas/detalleProceso.do?numConstancia=20-4-10695166
A182: 22644933 | B182: MARGARITA PACHECO GUTIERREZ | C182: 1502 | D182: 1502-2020 | E182: HIGIENISTA ORAL | F182: 01 de Abril de 2020 | G182: 30 de Abril de 2020 | H182: 2332000 | I182: 2332000 | J182: SERGIO BOVEA MARIN | K182: COORD CENTRO DE SALUD | L182: 1778 | M182: 2699 | N182: =VLOOKUP(A182:A596,'[2]ABRIL 2020'!$B$3:$M$584,12,0) -> 2020-04-21 | O182: https://www.contratos.gov.co/consultas/detalleProceso.do?numConstancia=20-4-10695171
A183: 1042450048 | B183: MARIA ALEJANDRA DE LA HOZ TOSCANO | C183: 1503 | D183: 1503-2020 | E183: MEDICO DE URGENCIA | F183: 01 de Abril de 2020 | G183: 30 de Abril de 2020 | H183: 3072000 | I183: 3072000 | J183: SERGIO BOVEA MARIN | K183: COORD CENTRO DE SALUD | L183: 1779 | M183: 2700 | N183: =VLOOKUP(A183:A597,'[2]ABRIL 2020'!$B$3:$M$584,12,0) -> 2020-04-21 | O183: https://www.contratos.gov.co/consultas/detalleProceso.do?numConstancia=20-4-10695175
A184: 1004093696 | B184: MARIA ALTAMAR OROZCO | C184: 1504 | D184: 1504-2020 | E184: AUXILIAR DE ENFERMERIA URGENCIAS | F184: 01 de Abril de 2020 | G184: 30 de Abril de 2020 | H184: 1653600 | I184: 1653600 | J184: SERGIO BOVEA MARIN | K184: COORD CENTRO DE SALUD | L184: 1780 | M184: 2701 | N184: =VLOOKUP(A184:A598,'[2]ABRIL 2020'!$B$3:$M$584,12,0) -> 2020-04-21 | O184: https://www.contratos.gov.co/consultas/detalleProceso.do?numConstancia=20-4-10695180
A185: 32789239 | B185: MARIA DEL CARMEN GUERRERO OJEDA | C185: 1505 | D185: 1505-2020 | E185: ORIENTADOR | F185: 01 de Abril de 2020 | G185: 30 de Abril de 2020 | H185: 1524000 | I185: 1524000 | J185: SERGIO BOVEA MARIN | K185: COORD CENTRO DE SALUD | L185: 1781 | M185: 2702 | N185: =VLOOKUP(A185:A599,'[2]ABRIL 2020'!$B$3:$M$584,12,0) -> 2020-04-21 | O185: https://www.contratos.gov.co/consultas/detalleProceso.do?numConstancia=20-4-10695182
A186: 1045704276 | B186: ANA MILENA HERRERA ALVIS | C186: 1506 | D186: 1542-2020 | E186: ENFERMERA JEFE | F186: 01 de Abril de 2020 | G186: 30 de Abril de 2020 | H186: 3810000 | I186: 3810000 | J186: CARLOS VISBAL JIMENEZ | K186: COORD CENTRO DE SALUD | L186: 1818 | M186: 2739 | N186: =VLOOKUP(A186:A600,'[2]ABRIL 2020'!$B$3:$M$584,12,0) -> 2020-04-21 | O186: https://www.contratos.gov.co/consultas/detalleProceso.do?numConstancia=20-4-10698808
A187: 32879250 | B187: MARIA SEGURA MEJIA | C187: 1507 | D187: 1507-2020 | E187: AUXILIAR FACTURACION URGENCIA | F187: 01 de Abril de 2020 | G187: 30 de Abril de 2020 | H187: 1680000 | I187: 1680000 | J187: SANDRA SANMARTIN | K187: SUBGENTE ADMINISTRATIVO | L187: 1783 | M187: 2704 | N187: =VLOOKUP(A187:A601,'[2]ABRIL 2020'!$B$3:$M$584,12,0) -> 2020-04-21 | O187: https://www.contratos.gov.co/consultas/detalleProceso.do?numConstancia=20-4-10695192
A188: 32726703 | B188: MARILYN ESTHER PEREZ LIÑAN | C188: 1508 | D188: 1508-2020 | E188: AUXILIAR DE ENFERMERIA URGENCIAS | F188: 01 de Abril de 2020 | G188: 30 de Abril de 2020 | H188: 1653600 | I188: 1653600 | J188: SERGIO BOVEA MARIN | K188: COORD CENTRO DE SALUD | L188: 1784 | M188: 2705 | N188: =VLOOKUP(A188:A602,'[2]ABRIL 2020'!$B$3:$M$584,12,0) -> 2020-04-21 | O188: https://www.contratos.gov.co/consultas/detalleProceso.do?numConstancia=20-4-10695234
A189: 72158729 | B189: MARLON CAMILO JORDAN HERRERA | C189: 1509 | D189: 1509-2020 | E189: REFERENCIA Y CONTRAREFERENCIA | F189: 01 de Abril de 2020 | G189: 30 de Abril de 2020 | H189: 1776000 | I189: 1776000 | J189: SERGIO BOVEA MARIN | K189: COORD CENTRO DE SALUD | L189: 1785 | M189: 2706 | N189: =VLOOKUP(A189:A603,'[2]ABRIL 2020'!$B$3:$M$584,12,0) -> 2020-04-21 | O189: https://www.contratos.gov.co/consultas/detalleProceso.do?numConstancia=20-4-10695238
A190: 22457575 | B190: MELBA MEZA PERDOMO | C190: 1510 | D190: 1510-2020 | E190: TRABAJADORA SOCIAL | F190: 01 de Abril de 2020 | G190: 30 de Abril de 2020 | H190: 2200000 | I190: 2200000 | J190: SERGIO BOVEA MARIN | K190: COORD CENTRO DE SALUD | L190: 1786 | M190: 2707 | N190: =VLOOKUP(A190:A604,'[2]ABRIL 2020'!$B$3:$M$584,12,0) -> 2020-04-21 | O190: https://www.contratos.gov.co/consultas/detalleProceso.do?numConstancia=20-4-10695247
A191: 8507626 | B191: MIGUEL ALVAREZ SALCEDO | C191: 1511 | D191: 1511-2020 | E191: CONDUCTOR DE AMBULANCIA | F191: 01 de Abril de 2020 | G191: 30 de Abril de 2020 | H191: 2160000 | I191: 2160000 | J191: BETTY PERTUZ | K191: SUBGERENCIA CIENTIFICA | L191: 1787 | M191: 2708 | N191: =VLOOKUP(A191:A605,'[2]ABRIL 2020'!$B$3:$M$584,12,0) -> 2020-04-21 | O191: https://www.contratos.gov.co/consultas/detalleProceso.do?numConstancia=20-4-10695249
A192: 32829349 | B192: NADIA BOVEA NIETO | C192: 1512 | D192: 1512-2020 | E192: AUXILIAR DE ENFERMERIA URGENCIAS | F192: 01 de Abril de 2020 | G192: 30 de Abril de 2020 | H192: 1653600 | I192: 1653600 | J192: SERGIO BOVEA MARIN | K192: COORD CENTRO DE SALUD | L192: 1788 | M192: 2709 | N192: =VLOOKUP(A192:A606,'[2]ABRIL 2020'!$B$3:$M$584,12,0) -> 2020-04-21 | O192: https://www.contratos.gov.co/consultas/detalleProceso.do?numConstancia=20-4-10695261
A193: 55307414 | B193: NATALY DE LAS SALAS ORTEGA | C193: 1513 | D193: 1513-2020 | E193: PSICOLOGA | F193: 01 de Abril de 2020 | G193: 30 de Abril de 2020 | H193: 3000000 | I193: 3000000 | J193: BETTY PERTUZ | K193: SUBGERENCIA CIENTIFICA | L193: 1789 | M193: 2710 | N193: =VLOOKUP(A193:A607,'[2]ABRIL 2020'!$B$3:$M$584,12,0) -> 2020-04-21 | O193: https://www.contratos.gov.co/consultas/detalleProceso.do?numConstancia=20-4-10695266
A194: 32783935 | B194: NELBY CORRALES HOYOS | C194: 1514 | D194: 1514-2020 | E194: AUXILIAR DE ENFERMERIA URGENCIAS | F194: 01 de Abril de 2020 | G194: 30 de Abril de 2020 | H194: 1653600 | I194: 1653600 | J194: SERGIO BOVEA MARIN | K194: COORD CENTRO DE SALUD | L194: 1790 | M194: 2711 | N194: =VLOOKUP(A194:A608,'[2]ABRIL 2020'!$B$3:$M$584,12,0) -> 2020-04-21 | O194: https://www.contratos.gov.co/consultas/detalleProceso.do?numConstancia=20-4-10695274
A195: 32819548 | B195: NELLY GALAN HEILBRON | C195: 1515 | D195: 1515-2020 | E195: AUXILIAR DE ENFERMERIA PROMOTORA EN SALUD | F195: 01 de Abril de 2020 | G195: 30 de Abril de 2020 | H195: 1215000 | I195: 1215000 | J195: SERGIO BOVEA MARIN | K195: COORD CENTRO DE SALUD | L195: 1791 | M195: 2712 | N195: =VLOOKUP(A195:A609,'[2]ABRIL 2020'!$B$3:$M$584,12,0) -> 2020-04-21 | O195: https://www.contratos.gov.co/consultas/detalleProceso.do?numConstancia=20-4-10696139
A196: 8770580 | B196: NELSON JULIO SANDOVAL GONZALEZ | C196: 1516 | D196: 1516-2020 | E196: AUXILIAR ADMINISTRATIVO DE FINANCIERA | F196: 01 de Abril de 2020 | G196: 30 de Abril de 2020 | H196: 3000000 | I196: 3000000 | J196: SANDRA SANMARTIN | K196: SUBGENTE ADMINISTRATIVO | L196: 1792 | M196: 2713 | N196: =VLOOKUP(A196:A610,'[2]ABRIL 2020'!$B$3:$M$584,12,0) -> 2020-04-21 | O196: https://www.contratos.gov.co/consultas/detalleProceso.do?numConstancia=20-4-10696142
A197: 72222215 | B197: NILSON ALMARALES GARIZABALO | C197: 1517 | D197: 1517-2020 | E197: MEDICO DE URGENCIA | F197: 01 de Abril de 2020 | G197: 30 de Abril de 2020 | H197: 6212000 | I197: 6212000 | J197: SERGIO BOVEA MARIN | K197: COORD CENTRO DE SALUD | L197: 1793 | M197: 2714 | N197: =VLOOKUP(A197:A611,'[2]ABRIL 2020'!$B$3:$M$584,12,0) -> 2020-04-21 | O197: https://www.contratos.gov.co/consultas/detalleProceso.do?numConstancia=20-4-10698697
A198: 22646712 | B198: NINI JOHANA SOLANO MORENO | C198: 1518 | D198: 1518-2020 | E198: ENFERMERA JEFE URGENCIAS | F198: 01 de Abril de 2020 | G198: 30 de Abril de 2020 | H198: 2280000 | I198: 2280000 | J198: SERGIO BOVEA MARIN | K198: COORD CENTRO DE SALUD | L198: 1794 | M198: 2715 | N198: =VLOOKUP(A198:A612,'[2]ABRIL 2020'!$B$3:$M$584,12,0) -> 2020-04-21 | O198: https://www.contratos.gov.co/consultas/detalleProceso.do?numConstancia=20-4-10698706
A199: 22564359 | B199: NINI JOHANNA QUIROZ SANTOS | C199: 1519 | D199: 1519-2020 | E199: MEDICO DE URGENCIA | F199: 01 de Abril de 2020 | G199: 30 de Abril de 2020 | H199: 3072000 | I199: 3072000 | J199: SERGIO BOVEA MARIN | K199: COORD CENTRO DE SALUD | L199: 1795 | M199: 2716 | N199: =VLOOKUP(A199:A613,'[2]ABRIL 2020'!$B$3:$M$584,12,0) -> 2020-04-21 | O199: https://www.contratos.gov.co/consultas/detalleProceso.do?numConstancia=20-4-10698710
A200: 8737936 | B200: NOE ANIBAL PELAEZ GONZALEZ | C200: 1520 | D200: 1520-2020 | E200: REGENTE DE FARMACIA | F200: 01 de Abril de 2020 | G200: 30 de Abril de 2020 | H200: 2280000 | I200: 2280000 | J200: BETTY PERTUZ | K200: SUBGERENCIA CIENTIFICA | L200: 1796 | M200: 2717 | N200: =VLOOKUP(A200:A614,'[2]ABRIL 2020'!$B$3:$M$584,12,0) -> 2020-04-21 | O200: https://www.contratos.gov.co/consultas/detalleProceso.do?numConstancia=20-4-10698715
A201: 39282489 | B201: NORIS SOFIA BERTEL PEREZ | C201: 1521 | D201: 1521-2020 | E201: AUXILIAR SERVICIOS GENERALES URGENCIA | F201: 01 de Abril de 2020 | G201: 30 de Abril de 2020 | H201: 1653600 | I201: 1653600 | J201: SERGIO BOVEA MARIN | K201: COORD CENTRO DE SALUD | L201: 1797 | M201: 2718 | N201: =VLOOKUP(A201:A615,'[2]ABRIL 2020'!$B$3:$M$584,12,0) -> 2020-04-21 | O201: https://www.contratos.gov.co/consultas/detalleProceso.do?numConstancia=20-4-10698719
... 245 more rows

Sheet PIC ABRIL
A1: LISTADO DE CONTRATACION PIC -MES DE ABRIL 2020
A3: CEDULA | B3: NOMBRE Y APELLIDO | C3: #OPS | D3: FECHA INICIO | E3: FECHA TERMINACION | F3: OBJETO DEL CONTRATO | G3: VALOR MENSUAL | H3: VALOR TOTAL | I3: VALOR LETRAS total | J3: SUPERVISOR | K3: CARGO | L3: CDP | M3: RP | N3: FECHA SECOP | O3: LINK SECOOP
A4: 55236945 | B4: ADRIANA PATRICIA MARQUEZ CANTILLO | C4: 0070-2020-PIC | D4: 01 de Abril de 2020 | E4: 30 de Abril de 2020 | F4: VACUNADORA | G4: 1400000 | H4: =G4*1 -> 1400000 | I4: =[1]!PesosMN(H4) ->  | J4: NILSA ARIZA MARQUEZ | K4: COORDINADOR P Y P | L4: 2038 | M4: 2959 | N4: 2020-04-20 | O4: =VLOOKUP(A4:A64,'[3]PIC ABRIL '!$B$4:$AM$70,38,0) -> https://www.contratos.gov.co/consultas/detalleProceso.do?numConstancia=20-4-10716385
A5: 22643912 | B5: ANGELA ROSA MORALES SANMARTIN | C5: 0071-2020-PIC | D5: 01 de Abril de 2020 | E5: 30 de Abril de 2020 | F5: VACUNADORA | G5: 1400000 | H5: 1400000 | J5: NILSA ARIZA MARQUEZ | K5: COORDINADOR P Y P | L5: 2039 | M5: 2960 | N5: 2020-04-20 | O5: =VLOOKUP(A5:A64,'[3]PIC ABRIL '!$B$4:$AM$70,38,0) -> https://www.contratos.gov.co/consultas/detalleProceso.do?numConstancia=20-4-10716395
A6: 32826839 | B6: BEATRIZ ISABEL SANMARTIN ESCORCIA | C6: 0072-2020-PIC | D6: 01 de Abril de 2020 | E6: 30 de Abril de 2020 | F6: VACUNADORA | G6: 1400000 | H6: 1400000 | J6: NILSA ARIZA MARQUEZ | K6: COORDINADOR P Y P | L6: 2040 | M6: 2961 | N6: 2020-04-20 | O6: =VLOOKUP(A6:A64,'[3]PIC ABRIL '!$B$4:$AM$70,38,0) -> https://www.contratos.gov.co/consultas/detalleProceso.do?numConstancia=20-4-10716401
A7: 1047337919 | B7: CANDY ISABEL ROJAS SARMIENTO | C7: 0073-2020-PIC | D7: 01 de Abril de 2020 | E7: 30 de Abril de 2020 | F7: APOYO A LA GESTION DIMENSIÓN_DE_SALUD_AMBIENTAL: Zoonosis | G7: 1400000 | H7: 1400000 | J7: NILSA ARIZA MARQUEZ | K7: COORDINADOR PYP | L7: 2041 | M7: 2962 | N7: 2020-04-20 | O7: =VLOOKUP(A7:A64,'[3]PIC ABRIL '!$B$4:$AM$70,38,0) -> https://www.contratos.gov.co/consultas/detalleProceso.do?numConstancia=20-4-10716406
A8: 32744712 | B8: CARMEN MARIA CORONADO ESCORCIA | C8: 0074-2020-PIC | D8: 01 de Abril de 2020 | E8: 30 de Abril de 2020 | F8: ENFERMERA JEFE -PIC | G8: 2500000 | H8: 2500000 | J8: BETTY PERTUZ | K8: SUBGERENTE CIENTIFICO | L8: 2042 | M8: 2963 | N8: 2020-04-20 | O8: =VLOOKUP(A8:A64,'[3]PIC ABRIL '!$B$4:$AM$70,38,0) -> https://www.contratos.gov.co/consultas/detalleProceso.do?numConstancia=20-4-10716409
A9: 32876278 | B9: CLAUDIA MARTINEZ RIVAS | C9: 0075-2020-PIC | D9: 01 de Abril de 2020 | E9: 30 de Abril de 2020 | F9: AGENTE EN ATENCION PRIMARIA EN SALUD | G9: 1400000 | H9: 1400000 | J9: NILSA ARIZA MARQUEZ | K9: COORDINADOR PYP | L9: 2043 | M9: 2964 | N9: 2020-04-20 | O9: =VLOOKUP(A9:A64,'[3]PIC ABRIL '!$B$4:$AM$70,38,0) -> https://www.contratos.gov.co/consultas/detalleProceso.do?numConstancia=20-4-10716413
A10: 8784783 | B10: DAIRO MANRIQUEZ MORALES BOVEA | C10: 0076-2020-PIC | D10: 01 de Abril de 2020 | E10: 30 de Abril de 2020 | F10: APOYO A LA GESTION DIMENSIÓN_DE_SALUD_AMBIENTAL: Zoonosis | G10: 1400000 | H10: 1400000 | J10: NILSA ARIZA MARQUEZ | K10: COORDINADOR PYP | L10: 2044 | M10: 2965 | N10: 2020-04-20 | O10: =VLOOKUP(A10:A64,'[3]PIC ABRIL '!$B$4:$AM$70,38,0) -> https://www.contratos.gov.co/consultas/detalleProceso.do?numConstancia=20-4-10716417
A11: 1046814365 | B11: DESIRETH DEL CARMEN DE LEON ATENCIA | C11: 0077-2020-PIC | D11: 01 de Abril de 2020 | E11: 30 de Abril de 2020 | F11: VACUNADORA | G11: 1400000 | H11: 1400000 | J11: NILSA ARIZA MARQUEZ | K11: COORDINADOR P Y P | L11: 2045 | M11: 2966 | N11: 2020-04-20 | O11: =VLOOKUP(A11:A64,'[3]PIC ABRIL '!$B$4:$AM$70,38,0) -> https://www.contratos.gov.co/consultas/detalleProceso.do?numConstancia=20-4-10716421
A12: 32824393 | B12: ELIZABETH RODRIGUEZ BARRIOS | C12: 0078-2020-PIC | D12: 01 de Abril de 2020 | E12: 30 de Abril de 2020 | F12: VACUNADORA | G12: 1400000 | H12: 1400000 | J12: NILSA ARIZA MARQUEZ | K12: COORDINADOR P Y P | L12: 2046 | M12: 2967 | N12: 2020-04-20 | O12: =VLOOKUP(A12:A64,'[3]PIC ABRIL '!$B$4:$AM$70,38,0) -> https://www.contratos.gov.co/consultas/detalleProceso.do?numConstancia=20-4-10716425
A13: 22467133 | B13: ESMERALDA COTE BORNACELY | C13: 0079-2020-PIC | D13: 01 de Abril de 2020 | E13: 30 de Abril de 2020 | F13: VACUNADORA | G13: 1400000 | H13: 1400000 | J13: NILSA ARIZA MARQUEZ | K13: COORDINADOR P Y P | L13: 2047 | M13: 2968 | N13: 2020-04-20 | O13: =VLOOKUP(A13:A64,'[3]PIC ABRIL '!$B$4:$AM$70,38,0) -> https://www.contratos.gov.co/consultas/detalleProceso.do?numConstancia=20-4-10716429
A14: 22446125 | B14: GENOVEVA MARIA LLANES JEREZ | C14: 0080-2020-PIC | D14: 01 de Abril de 2020 | E14: 30 de Abril de 2020 | F14: VACUNADORA | G14: 1400000 | H14: 1400000 | J14: NILSA ARIZA MARQUEZ | K14: COORDINADOR P Y P | L14: 2048 | M14: 2969 | N14: 2020-04-20 | O14: =VLOOKUP(A14:A64,'[3]PIC ABRIL '!$B$4:$AM$70,38,0) -> https://www.contratos.gov.co/consultas/detalleProceso.do?numConstancia=20-4-10716431
A15: 49775980 | B15: GLORIA HERNANDEZ CENTENO | C15: 0081-2020-PIC | D15: 01 de Abril de 2020 | E15: 30 de Abril de 2020 | F15: VACUNADORA | G15: 1400000 | H15: 1400000 | J15: NILSA ARIZA MARQUEZ | K15: COORDINADOR P Y P | L15: 2049 | M15: 2970 | N15: 2020-04-20 | O15: =VLOOKUP(A15:A64,'[3]PIC ABRIL '!$B$4:$AM$70,38,0) -> https://www.contratos.gov.co/consultas/detalleProceso.do?numConstancia=20-4-10716436
A16: 8767993 | B16: HAROLD MANUEL CABARCAS GONZALEZ | C16: 0082-2020-PIC | D16: 01 de Abril de 2020 | E16: 30 de Abril de 2020 | F16: VACUNADORA | G16: 1400000 | H16: 1400000 | J16: NILSA ARIZA MARQUEZ | K16: COORDINADOR P Y P | L16: 2050 | M16: 2971 | N16: 2020-04-20 | O16: =VLOOKUP(A16:A64,'[3]PIC ABRIL '!$B$4:$AM$70,38,0) -> https://www.contratos.gov.co/consultas/detalleProceso.do?numConstancia=20-4-10716440
A17: 64578458 | B17: ILDA DEL PILAR PACHECO AGUIRRE | C17: 0083-2020-PIC | D17: 01 de Abril de 2020 | E17: 30 de Abril de 2020 | F17: VACUNADORA | G17: 1400000 | H17: 1400000 | J17: NILSA ARIZA MARQUEZ | K17: COORDINADOR P Y P | L17: 2051 | M17: 2972 | N17: 2020-04-20 | O17: =VLOOKUP(A17:A64,'[3]PIC ABRIL '!$B$4:$AM$70,38,0) -> https://www.contratos.gov.co/consultas/detalleProceso.do?numConstancia=20-4-10716444
A18: 32619158 | B18: ISABEL HERRERA PACHECO | C18: 0084-2020-PIC | D18: 01 de Abril de 2020 | E18: 30 de Abril de 2020 | F18: VACUNADORA- CUARTO FRIO | G18: 1600000 | H18: 1600000 | J18: NILSA ARIZA MARQUEZ | K18: COORDINADOR P Y P | L18: 2052 | M18: 2973 | N18: 2020-04-20 | O18: =VLOOKUP(A18:A64,'[3]PIC ABRIL '!$B$4:$AM$70,38,0) -> https://www.contratos.gov.co/consultas/detalleProceso.do?numConstancia=20-4-10716449
A19: 32816898 | B19: ISABEL OSORIO BARRIOS | C19: 0085-2020-PIC | D19: 01 de Abril de 2020 | E19: 30 de Abril de 2020 | F19: VACUNADORA | G19: 1400000 | H19: 1400000 | J19: NILSA ARIZA MARQUEZ | K19: COORDINADOR P Y P | L19: 2053 | M19: 2974 | N19: 2020-04-20 | O19: =VLOOKUP(A19:A64,'[3]PIC ABRIL '!$B$4:$AM$70,38,0) -> https://www.contratos.gov.co/consultas/detalleProceso.do?numConstancia=20-4-10716453
A20: 1045675584 | B20: ISOREIDA PEREZ PALMEIRA | C20: 0086-2020-PIC | D20: 01 de Abril de 2020 | E20: 30 de Abril de 2020 | F20: ENFERMERA JEFE APS -PIC | G20: 2500000 | H20: 2500000 | J20: BETTY PERTUZ | K20: SUBGERENTE CIENTIFICO | L20: 2054 | M20: 2975 | N20: 2020-04-20 | O20: =VLOOKUP(A20:A64,'[3]PIC ABRIL '!$B$4:$AM$70,38,0) -> https://www.contratos.gov.co/consultas/detalleProceso.do?numConstancia=20-4-10716454
A21: 22431886 | B21: IVIS GONZALEZ AYARZA | C21: 0087-2020-PIC | D21: 01 de Abril de 2020 | E21: 30 de Abril de 2020 | F21: VACUNADORA | G21: 1400000 | H21: 1400000 | J21: NILSA ARIZA MARQUEZ | K21: COORDINADOR P Y P | L21: 2055 | M21: 2976 | N21: 2020-04-20 | O21: =VLOOKUP(A21:A64,'[3]PIC ABRIL '!$B$4:$AM$70,38,0) -> https://www.contratos.gov.co/consultas/detalleProceso.do?numConstancia=20-4-10716459
A22: 3779189 | B22: JAIME ENRIQUE MARQUEZ VILLAFAÑE | C22: 0088-2020-PIC | D22: 01 de Abril de 2020 | E22: 30 de Abril de 2020 | F22: APOYO A LA GESTION DIMENSIÓN_DE_SALUD_AMBIENTAL: Zoonosis | G22: 1400000 | H22: 1400000 | J22: NILSA ARIZA MARQUEZ | K22: COORDINADOR PYP | L22: 2056 | M22: 2977 | N22: 2020-04-20 | O22: =VLOOKUP(A22:A64,'[3]PIC ABRIL '!$B$4:$AM$70,38,0) -> https://www.contratos.gov.co/consultas/detalleProceso.do?numConstancia=20-4-10716461
A23: 32829868 | B23: JUDITH ISABEL ARCON MEDINA | C23: 0089-2020-PIC | D23: 01 de Abril de 2020 | E23: 30 de Abril de 2020 | F23: APOYO A LA GESTION DIMENSIÓN_DE_SALUD_AMBIENTAL: Zoonosis | G23: 1400000 | H23: 1400000 | J23: NILSA ARIZA MARQUEZ | K23: COORDINADOR PYP | L23: 2057 | M23: 2978 | N23: 2020-04-20 | O23: =VLOOKUP(A23:A64,'[3]PIC ABRIL '!$B$4:$AM$70,38,0) -> https://www.contratos.gov.co/consultas/detalleProceso.do?numConstancia=20-4-10716465
A24: 32865375 | B24: LEDIA DEL CARMEN MARTINEZ DE MOYA | C24: 0090-2020-PIC | D24: 01 de Abril de 2020 | E24: 30 de Abril de 2020 | F24: VACUNADORA | G24: 1400000 | H24: 1400000 | J24: NILSA ARIZA MARQUEZ | K24: COORDINADOR P Y P | L24: 2058 | M24: 2979 | N24: 2020-04-20 | O24: =VLOOKUP(A24:A64,'[3]PIC ABRIL '!$B$4:$AM$70,38,0) -> https://www.contratos.gov.co/consultas/detalleProceso.do?numConstancia=20-4-10716470
A25: 44159904 | B25: LIZLEIDYS OSORIO DOMINGUEZ | C25: 0091-2020-PIC | D25: 01 de Abril de 2020 | E25: 30 de Abril de 2020 | F25: ENFERMERA-JEFE TERRENO PAI | G25: 2120000 | H25: 2120000 | J25: BETTY PERTUZ | K25: SUBGERENTE CIENTIFICO | L25: 2059 | M25: 2980 | N25: 2020-04-20 | O25: =VLOOKUP(A25:A64,'[3]PIC ABRIL '!$B$4:$AM$70,38,0) -> https://www.contratos.gov.co/consultas/detalleProceso.do?numConstancia=20-4-10716475
A26: 1046698080 | B26: LUIS ALFREDO CANTILLO CABALLERO | C26: 0092-2020-PIC | D26: 01 de Abril de 2020 | E26: 30 de Abril de 2020 | F26: APOYO A LA GESTION DIMENSIÓN_DE_SALUD_AMBIENTAL: Zoonosis | G26: 1400000 | H26: 1400000 | J26: NILSA ARIZA MARQUEZ | K26: COORDINADOR PYP | L26: 2060 | M26: 2981 | N26: 2020-04-20 | O26: =VLOOKUP(A26:A64,'[3]PIC ABRIL '!$B$4:$AM$70,38,0) -> https://www.contratos.gov.co/consultas/detalleProceso.do?numConstancia=20-4-10716479
A27: 1043185696 | B27: MANUEL ZULBARAN | C27: 0093-2020-PIC | D27: 01 de Abril de 2020 | E27: 30 de Abril de 2020 | F27: APOYO A LA GESTION DIMENSIÓN_DE_SALUD_AMBIENTAL: Zoonosis | G27: 1400000 | H27: 1400000 | J27: NILSA ARIZA MARQUEZ | K27: COORDINADOR PYP | L27: 2061 | M27: 2982 | N27: 2020-04-20 | O27: =VLOOKUP(A27:A64,'[3]PIC ABRIL '!$B$4:$AM$70,38,0) -> https://www.contratos.gov.co/consultas/detalleProceso.do?numConstancia=20-4-10716485
A28: 30895455 | B28: MARIA CONCEPCION ESPRIELLA BUELVAS | C28: 0094-2020-PIC | D28: 01 de Abril de 2020 | E28: 30 de Abril de 2020 | F28: APOYO A LA GESTION DIMENSIÓN_DE_SALUD_AMBIENTAL: Zoonosis | G28: 1400000 | H28: 1400000 | J28: NILSA ARIZA MARQUEZ | K28: COORDINADOR PYP | L28: 2062 | M28: 2983 | N28: 2020-04-20 | O28: =VLOOKUP(A28:A64,'[3]PIC ABRIL '!$B$4:$AM$70,38,0) -> https://www.contratos.gov.co/consultas/detalleProceso.do?numConstancia=20-4-10716489
A29: 22430756 | B29: MARITZA MARINO OSORIO | C29: 0095-2020-PIC | D29: 01 de Abril de 2020 | E29: 30 de Abril de 2020 | F29: VACUNADORA | G29: 1400000 | H29: 1400000 | J29: NILSA ARIZA MARQUEZ | K29: COORDINADOR P Y P | L29: 2063 | M29: 2984 | N29: 2020-04-20 | O29: =VLOOKUP(A29:A64,'[3]PIC ABRIL '!$B$4:$AM$70,38,0) -> https://www.contratos.gov.co/consultas/detalleProceso.do?numConstancia=20-4-10716498
A30: 1143136225 | B30: MARTA CECILIA MARIN ZAPATA | C30: 0096-2020-PIC | D30: 01 de Abril de 2020 | E30: 30 de Abril de 2020 | F30: AGENTE EN ATENCION PRIMARIA EN SALUD | G30: 1400000 | H30: 1400000 | J30: NILSA ARIZA MARQUEZ | K30: COORDINADOR PYP | L30: 2064 | M30: 2985 | N30: 2020-04-20 | O30: =VLOOKUP(A30:A64,'[3]PIC ABRIL '!$B$4:$AM$70,38,0) -> https://www.contratos.gov.co/consultas/detalleProceso.do?numConstancia=20-4-10716503
A31: 22506781 | B31: MILDRED TATIANA GOENAGA ALVARADO | C31: 0097-2020-PIC | D31: 01 de Abril de 2020 | E31: 30 de Abril de 2020 | F31: ENFERMERA-JEFE TERRENO PAI | G31: 2120000 | H31: 2120000 | J31: BETTY PERTUZ | K31: SUBGERENTE CIENTIFICO | L31: 2065 | M31: 2986 | N31: 2020-04-20 | O31: =VLOOKUP(A31:A64,'[3]PIC ABRIL '!$B$4:$AM$70,38,0) -> https://www.contratos.gov.co/consultas/detalleProceso.do?numConstancia=20-4-10716506
A32: 32829531 | B32: MILENA DONADO OCHOA | C32: 0098-2020-PIC | D32: 01 de Abril de 2020 | E32: 30 de Abril de 2020 | F32: APOYO COORDINACION PIC | G32: 4000000 | H32: 4000000 | J32: BETTY PERTUZ | K32: SUBGERENTE CIENTIFICO | L32: 2066 | M32: 2987 | N32: 2020-04-20 | O32: =VLOOKUP(A32:A64,'[3]PIC ABRIL '!$B$4:$AM$70,38,0) -> https://www.contratos.gov.co/consultas/detalleProceso.do?numConstancia=20-4-10716510
A33: 32812585 | B33: NESLIE OSORIO PARODIS | C33: 0099-2020-PIC | D33: 01 de Abril de 2020 | E33: 30 de Abril de 2020 | F33: VACUNADORA | G33: 1400000 | H33: 1400000 | J33: NILSA ARIZA MARQUEZ | K33: COORDINADOR P Y P | L33: 2067 | M33: 2988 | N33: 2020-04-20 | O33: =VLOOKUP(A33:A64,'[3]PIC ABRIL '!$B$4:$AM$70,38,0) -> https://www.contratos.gov.co/consultas/detalleProceso.do?numConstancia=20-4-10716516
A34: 32863854 | B34: OLGA BARRIOS BACCA | C34: 0100-2020-PIC | D34: 01 de Abril de 2020 | E34: 30 de Abril de 2020 | F34: VACUNADORA | G34: 1400000 | H34: 1400000 | J34: NILSA ARIZA MARQUEZ | K34: COORDINADOR P Y P | L34: 2068 | M34: 2989 | N34: 2020-04-20 | O34: =VLOOKUP(A34:A64,'[3]PIC ABRIL '!$B$4:$AM$70,38,0) -> https://www.contratos.gov.co/consultas/detalleProceso.do?numConstancia=20-4-10716518
A35: 22387913 | B35: OMEIRA CECILIA BARRIOS DE ESTREN | C35: 0102-2020-PIC | D35: 01 de Abril de 2020 | E35: 30 de Abril de 2020 | F35: VACUNADORA | G35: 1400000 | H35: =G35*1 -> 1400000 | I35: =[1]!PesosMN(H35) ->  | J35: NILSA ARIZA MARQUEZ | K35: COORDINADOR P Y P | L35: 2070 | M35: 2991 | N35: 2020-04-20 | O35: =VLOOKUP(A35:A64,'[3]PIC ABRIL '!$B$4:$AM$70,38,0) -> https://www.contratos.gov.co/consultas/detalleProceso.do?numConstancia=20-4-10716526
A36: 32867404 | B36: PATRICIA DEL CARMEN IBAÑEZ OSORIO | C36: 0103-2020-PIC | D36: 01 de Abril de 2020 | E36: 30 de Abril de 2020 | F36: AGENTE EN ATENCION PRIMARIA EN SALUD | G36: 1400000 | H36: 1400000 | J36: NILSA ARIZA MARQUEZ | K36: COORDINADOR PYP | L36: 2071 | M36: 2992 | N36: 2020-04-20 | O36: =VLOOKUP(A36:A64,'[3]PIC ABRIL '!$B$4:$AM$70,38,0) -> https://www.contratos.gov.co/consultas/detalleProceso.do?numConstancia=20-4-10716528
A37: 22528921 | B37: ROSARIO DEL CARMEN CAMARGO GOMEZ | C37: 0104-2020-PIC | D37: 01 de Abril de 2020 | E37: 30 de Abril de 2020 | F37: VACUNADORA | G37: 1400000 | H37: 1400000 | J37: NILSA ARIZA MARQUEZ | K37: COORDINADOR P Y P | L37: 2072 | M37: 2993 | N37: 2020-04-20 | O37: =VLOOKUP(A37:A64,'[3]PIC ABRIL '!$B$4:$AM$70,38,0) -> https://www.contratos.gov.co/consultas/detalleProceso.do?numConstancia=20-4-10716538
A38: 1143442239 | B38: SAYURIS OCAMPO GARCIA | C38: 0105-2020-PIC | D38: 01 de Abril de 2020 | E38: 30 de Abril de 2020 | F38: =+F39 -> VACUNADORA | G38: 1400000 | H38: 1400000 | J38: NILSA ARIZA MARQUEZ | K38: COORDINADOR PYP | L38: 2073 | M38: 2994 | N38: 2020-04-20 | O38: =VLOOKUP(A38:A64,'[3]PIC ABRIL '!$B$4:$AM$70,38,0) -> https://www.contratos.gov.co/consultas/detalleProceso.do?numConstancia=20-4-10716543
A39: 32684298 | B39: XIOMARA RODRIGUEZ CANTILLO | C39: 0106-2020-PIC | D39: 01 de Abril de 2020 | E39: 30 de Abril de 2020 | F39: VACUNADORA | G39: 1400000 | H39: 1400000 | J39: NILSA ARIZA MARQUEZ | K39: COORDINADOR P Y P | L39: 2074 | M39: 2995 | N39: 2020-04-20 | O39: =VLOOKUP(A39:A64,'[3]PIC ABRIL '!$B$4:$AM$70,38,0) -> https://www.contratos.gov.co/consultas/detalleProceso.do?numConstancia=20-4-10716549
A40: 32820220 | B40: YARLENE DE AVILA DE ALBA | C40: 0108-2020-PIC | D40: 01 de Abril de 2020 | E40: 30 de Abril de 2020 | F40: VACUNADORA | G40: 1400000 | H40: 1400000 | J40: NILSA ARIZA MARQUEZ | K40: COORDINADOR P Y P | L40: 2076 | M40: 2997 | N40: 2020-04-20 | O40: =VLOOKUP(A40:A64,'[3]PIC ABRIL '!$B$4:$AM$70,38,0) -> https://www.contratos.gov.co/consultas/detalleProceso.do?numConstancia=20-4-10716553
A41: 60355382 | B41: YEIGNE CONTRERAS BAYONA | C41: 0109-2020-PIC | D41: 01 de Abril de 2020 | E41: 30 de Abril de 2020 | F41: VACUNADORA | G41: 1400000 | H41: 1400000 | J41: NILSA ARIZA MARQUEZ | K41: COORDINADOR P Y P | L41: 2077 | M41: 2998 | N41: 2020-04-20 | O41: =VLOOKUP(A41:A64,'[3]PIC ABRIL '!$B$4:$AM$70,38,0) -> https://www.contratos.gov.co/consultas/detalleProceso.do?numConstancia=20-4-10716558
A42: 32811232 | B42: YOLANDA SOFIA MORALES BERMUDEZ | C42: 0110-2020-PIC | D42: 01 de Abril de 2020 | E42: 30 de Abril de 2020 | F42: VACUNADORA- CUARTO FRIO | G42: 1600000 | H42: 1600000 | J42: NILSA ARIZA MARQUEZ | K42: COORDINADOR P Y P | L42: 2078 | M42: 2999 | N42: 2020-04-20 | O42: =VLOOKUP(A42:A64,'[3]PIC ABRIL '!$B$4:$AM$70,38,0) -> https://www.contratos.gov.co/consultas/detalleProceso.do?numConstancia=20-4-10716561
A43: 32864918 | B43: YOSMARY MARIA BENAVIDES TORRES | C43: 0111-2020-PIC | D43: 01 de Abril de 2020 | E43: 30 de Abril de 2020 | F43: VACUNADORA | G43: 1400000 | H43: 1400000 | J43: NILSA ARIZA MARQUEZ | K43: COORDINADOR P Y P | L43: 2079 | M43: 3000 | N43: 2020-04-20 | O43: =VLOOKUP(A43:A64,'[3]PIC ABRIL '!$B$4:$AM$70,38,0) -> https://www.contratos.gov.co/consultas/detalleProceso.do?numConstancia=20-4-10716565
A44: 1042428053 | B44: YURANIS DEL CARMEN BLANQUICETT MORENO | C44: 0112-2020-PIC | D44: 01 de Abril de 2020 | E44: 30 de Abril de 2020 | F44: VACUNADORA | G44: 1400000 | H44: 1400000 | J44: NILSA ARIZA MARQUEZ | K44: COORDINADOR P Y P | L44: 2080 | M44: 3001 | N44: 2020-04-20 | O44: =VLOOKUP(A44:A64,'[3]PIC ABRIL '!$B$4:$AM$70,38,0) -> https://www.contratos.gov.co/consultas/detalleProceso.do?numConstancia=20-4-10716569
A45: 22645320 | B45: ADRIANA CRISTINA GARCIA CARRILLO | C45: 0113-2020-PIC | D45: 01 de Abril de 2020 | E45: 30 de Abril de 2020 | F45: FISIOTERAPEUTA | G45: 2500000 | H45: 2500000 | J45: BETTY PERTUZ | K45: SUBGERENTE CIENTIFICO | L45: 2081 | M45: 3002 | N45: 2020-04-20 | O45: =VLOOKUP(A45:A64,'[3]PIC ABRIL '!$B$4:$AM$70,38,0) -> https://www.contratos.gov.co/consultas/detalleProceso.do?numConstancia=20-4-10716574
A46: 22668428 | B46: ANABELL VELASQUEZ FERNANDEZ | C46: 0114-2020-PIC | D46: 01 de Abril de 2020 | E46: 30 de Abril de 2020 | F46: COORDINACION PIC | G46: 5800000 | H46: 5800000 | J46: BETTY PERTUZ | K46: SUBGERENTE CIENTIFICO | L46: 2082 | M46: 3003 | N46: 2020-04-20 | O46: =VLOOKUP(A46:A64,'[3]PIC ABRIL '!$B$4:$AM$70,38,0) -> https://www.contratos.gov.co/consultas/detalleProceso.do?numConstancia=20-4-10716578
A47: 1065575009 | B47: ANDREA TATIANA SERRANO MOLINA | C47: 0115-2020-PIC | D47: 01 de Abril de 2020 | E47: 30 de Abril de 2020 | F47: PSICOLOGO | G47: 2500000 | H47: 2500000 | J47: BETTY PERTUZ | K47: SUBGERENTE CIENTIFICO | L47: 2083 | M47: 3004 | N47: 2020-04-20 | O47: =VLOOKUP(A47:A64,'[3]PIC ABRIL '!$B$4:$AM$70,38,0) -> https://www.contratos.gov.co/consultas/detalleProceso.do?numConstancia=20-4-10716580
A48: 1043931882 | B48: AREIDIS MEDINA SANJUAN | C48: 0116-2020-PIC | D48: 01 de Abril de 2020 | E48: 30 de Abril de 2020 | F48: AGENTE EN ATENCION PRIMARIA EN SALUD | G48: 1400000 | H48: 1400000 | J48: NILSA ARIZA MARQUEZ | K48: COORDINADOR PYP | L48: 2084 | M48: 3005 | N48: 2020-04-20 | O48: =VLOOKUP(A48:A64,'[3]PIC ABRIL '!$B$4:$AM$70,38,0) -> https://www.contratos.gov.co/consultas/detalleProceso.do?numConstancia=20-4-10716599
A49: 22543666 | B49: DENNYS MARIELA ARZUZAR GALVIS | C49: 0117-2020-PIC | D49: 01 de Abril de 2020 | E49: 30 de Abril de 2020 | F49: AGENTE EN ATENCION PRIMARIA EN SALUD | G49: 1400000 | H49: 1400000 | J49: NILSA ARIZA MARQUEZ | K49: COORDINADOR PYP | L49: 2085 | M49: 3006 | N49: 2020-04-20 | O49: =VLOOKUP(A49:A64,'[3]PIC ABRIL '!$B$4:$AM$70,38,0) -> https://www.contratos.gov.co/consultas/detalleProceso.do?numConstancia=20-4-10716602
A50: 72429089 | B50: EDER DE JESUS SEGURA BRAVO | C50: 0118-2020-PIC | D50: 01 de Abril de 2020 | E50: 30 de Abril de 2020 | F50: HIGIENISTA ORAL | G50: 1900000 | H50: 1900000 | J50: NILSA ARIZA MARQUEZ | K50: COORDINADOR PYP | L50: 2086 | M50: 3007 | N50: 2020-04-20 | O50: =VLOOKUP(A50:A64,'[3]PIC ABRIL '!$B$4:$AM$70,38,0) -> https://www.contratos.gov.co/consultas/detalleProceso.do?numConstancia=20-4-10716604
A51: 22617307 | B51: ETILVIA TERESA DONADO CABALLERO | C51: 0119-2020-PIC | D51: 01 de Abril de 2020 | E51: 30 de Abril de 2020 | F51: PSICOLOGO | G51: 2500000 | H51: 2500000 | J51: BETTY PERTUZ | K51: SUBGERENTE CIENTIFICO | L51: 2087 | M51: 3008 | N51: 2020-04-20 | O51: =VLOOKUP(A51:A64,'[3]PIC ABRIL '!$B$4:$AM$70,38,0) -> https://www.contratos.gov.co/consultas/detalleProceso.do?numConstancia=20-4-10716608
A52: 44160070 | B52: GLORIA ZAPATA REZA | C52: 0120-2020-PIC | D52: 01 de Abril de 2020 | E52: 30 de Abril de 2020 | F52: AGENTE EN ATENCION PRIMARIA EN SALUD | G52: 1400000 | H52: 1400000 | J52: NILSA ARIZA MARQUEZ | K52: COORDINADOR PYP | L52: 2088 | M52: 3009 | N52: 2020-04-20 | O52: =VLOOKUP(A52:A64,'[3]PIC ABRIL '!$B$4:$AM$70,38,0) -> https://www.contratos.gov.co/consultas/detalleProceso.do?numConstancia=20-4-10716610
A53: 1042431836 | B53: JULIETH PAOLA HERRERA ORTEGA | C53: 0121-2020-PIC | D53: 01 de Abril de 2020 | E53: 30 de Abril de 2020 | F53: PSICOLOGO | G53: 3000000 | H53: 3000000 | J53: BETTY PERTUZ | K53: SUBGERENTE CIENTIFICO | L53: 2089 | M53: 3010 | N53: 2020-04-20 | O53: =VLOOKUP(A53:A64,'[3]PIC ABRIL '!$B$4:$AM$70,38,0) -> https://www.contratos.gov.co/consultas/detalleProceso.do?numConstancia=20-4-10716614
A54: 44152281 | B54: KAREN JOHANA JIMENEZ RAMOS | C54: 0122-2020-PIC | D54: 01 de Abril de 2020 | E54: 30 de Abril de 2020 | F54: APOYO A LA GESTION DIMENSIÓN_DE_SALUD_AMBIENTAL: Zoonosis | G54: 1900000 | H54: 1900000 | J54: NILSA ARIZA MARQUEZ | K54: COORDINADOR P Y P | L54: 2090 | M54: 3011 | N54: 2020-04-20 | O54: =VLOOKUP(A54:A64,'[3]PIC ABRIL '!$B$4:$AM$70,38,0) -> https://www.contratos.gov.co/consultas/detalleProceso.do?numConstancia=20-4-10716617
A55: 1046872703 | B55: LUCELIS DE LA HOZ ESCORCIA | C55: 0123-2020-PIC | D55: 01 de Abril de 2020 | E55: 30 de Abril de 2020 | F55: AUXILIAR ADMINISTRATIVO-PIC | G55: 1900000 | H55: 1900000 | J55: BETTY PERTUZ | K55: SUBGERENTE CIENTIFICO | L55: 2091 | M55: 3012 | N55: 2020-04-20 | O55: =VLOOKUP(A55:A64,'[3]PIC ABRIL '!$B$4:$AM$70,38,0) -> https://www.contratos.gov.co/consultas/detalleProceso.do?numConstancia=20-4-10716623
A56: 32872420 | B56: LUZ MARINA GARIZAO TAPIA | C56: 0124-2020-PIC | D56: 01 de Abril de 2020 | E56: 30 de Abril de 2020 | F56: AGENTE EN ATENCION PRIMARIA EN SALUD | G56: 1400000 | H56: 1400000 | J56: NILSA ARIZA MARQUEZ | K56: COORDINADOR PYP | L56: 2092 | M56: 3013 | N56: 2020-04-20 | O56: =VLOOKUP(A56:A64,'[3]PIC ABRIL '!$B$4:$AM$70,38,0) -> https://www.contratos.gov.co/consultas/detalleProceso.do?numConstancia=20-4-10716625
A57: 45687350 | B57: MARICELA CARRILLO AGUILAR | C57: 0125-2020-PIC | D57: 01 de Abril de 2020 | E57: 30 de Abril de 2020 | F57: APOYO GESTION PIC | G57: 2500000 | H57: 2500000 | J57: BETTY PERTUZ | K57: SUBGERENTE CIENTIFICO | L57: 2093 | M57: 3014 | N57: 2020-04-20 | O57: =VLOOKUP(A57:A64,'[3]PIC ABRIL '!$B$4:$AM$70,38,0) -> https://www.contratos.gov.co/consultas/detalleProceso.do?numConstancia=20-4-10716628
A58: 44150081 | B58: MARY LUZ GUERRERO CERVANTES | C58: 0126-2020-PIC | D58: 01 de Abril de 2020 | E58: 30 de Abril de 2020 | F58: AGENTE EN ATENCION PRIMARIA EN SALUD | G58: 1400000 | H58: 1400000 | J58: NILSA ARIZA MARQUEZ | K58: COORDINADOR PYP | L58: 2094 | M58: 3015 | N58: 2020-04-20 | O58: =VLOOKUP(A58:A64,'[3]PIC ABRIL '!$B$4:$AM$70,38,0) -> https://www.contratos.gov.co/consultas/detalleProceso.do?numConstancia=20-4-10716632
A59: 32862578 | B59: MILDRIS PATRICIA QUIJANO VILORIA | C59: 0127-2020-PIC | D59: 01 de Abril de 2020 | E59: 30 de Abril de 2020 | F59: HIGIENISTA ORAL | G59: 1900000 | H59: 1900000 | J59: NILSA ARIZA MARQUEZ | K59: COORDINADOR P Y P | L59: 2095 | M59: 3016 | N59: 2020-04-20 | O59: =VLOOKUP(A59:A64,'[3]PIC ABRIL '!$B$4:$AM$70,38,0) -> https://www.contratos.gov.co/consultas/detalleProceso.do?numConstancia=20-4-10716634
A60: 1002162856 | B60: NICOLL PATRICIA NIEBLES RIVERA | C60: 0128-2020-PIC | D60: 01 de Abril de 2020 | E60: 30 de Abril de 2020 | F60: AGENTE EN ATENCION PRIMARIA EN SALUD | G60: 1400000 | H60: 1400000 | J60: NILSA ARIZA MARQUEZ | K60: COORDINADOR PYP | L60: 2096 | M60: 3017 | N60: 2020-04-20 | O60: =VLOOKUP(A60:A64,'[3]PIC ABRIL '!$B$4:$AM$70,38,0) -> https://www.contratos.gov.co/consultas/detalleProceso.do?numConstancia=20-4-10716638
A61: 32758730 | B61: NUBIA ESTELA CANO GUILLEN | C61: 0129-2020-PIC | D61: 01 de Abril de 2020 | E61: 30 de Abril de 2020 | F61: AGENTE EN ATENCION PRIMARIA EN SALUD | G61: 1400000 | H61: 1400000 | J61: NILSA ARIZA MARQUEZ | K61: COORDINADOR PYP | L61: 2097 | M61: 3018 | N61: 2020-04-20 | O61: =VLOOKUP(A61:A64,'[3]PIC ABRIL '!$B$4:$AM$70,38,0) -> https://www.contratos.gov.co/consultas/detalleProceso.do?numConstancia=20-4-10716640
A62: 1140873504 | B62: OLMAN JOSHUA BULA TORRES | C62: 0130-2020-PIC | D62: 01 de Abril de 2020 | E62: 30 de Abril de 2020 | F62: PSICOLOGO | G62: 2500000 | H62: 2500000 | J62: BETTY PERTUZ | K62: SUBGERENTE CIENTIFICO | L62: 2098 | M62: 3019 | N62: 2020-04-20 | O62: =VLOOKUP(A62:A64,'[3]PIC ABRIL '!$B$4:$AM$70,38,0) -> https://www.contratos.gov.co/consultas/detalleProceso.do?numConstancia=20-4-10716644
A63: 32777087 | B63: ROSA MARGARITA SEVILLA | C63: 0131-2020-PIC | D63: 01 de Abril de 2020 | E63: 30 de Abril de 2020 | F63: NUTRICIONISTA | G63: 2500000 | H63: 2500000 | J63: BETTY PERTUZ | K63: SUBGERENTE CIENTIFICO | L63: 2099 | M63: 3020 | N63: 2020-04-20 | O63: =VLOOKUP(A63:A64,'[3]PIC ABRIL '!$B$4:$AM$70,38,0) -> https://www.contratos.gov.co/consultas/detalleProceso.do?numConstancia=20-4-10716646
A64: 1042449446 | B64: SAILIS MARIA FRIA VEGA | C64: 0132-2020-PIC | D64: 01 de Abril de 2020 | E64: 30 de Abril de 2020 | F64: AGENTE EN ATENCION PRIMARIA EN SALUD | G64: 1400000 | H64: 1400000 | J64: NILSA ARIZA MARQUEZ | K64: COORDINADOR PYP | L64: 2100 | M64: 3021 | N64: 2020-04-20 | O64: =VLOOKUP(A64:A64,'[3]PIC ABRIL '!$B$4:$AM$70,38,0) -> https://www.contratos.gov.co/consultas/detalleProceso.do?numConstancia=20-4-10716649

Sheet Hoja1
